Workbook

Sheet Návod
B2: Návod na používání tohoto nástroje
B5: Tento dokument je součástí diplomové práce: Specifika připojení fotovoltaické elektrárny do distribuční soustavy vn v České republice Specifics of connecting a photovoltaic power plant to the high voltage distribution grid in the Czech Republic Na Fakultě elektrotechnické, katedra elektroenergetiky, ČVUT 2016/2017 Autor diplomové práce: Bc. Petr Novák Vedoucí diplomové práce: Ing. Vít Klein, Ph.D.
B16: Cíl dokumentu:
B19: Tento nástroj slouží k ekonomické analýze projektů týkajících se fotovoltaických systémů. Jedná se o univerzální a zjednodušený nástroj, jehož výsledky jsou pouze orientační. Pro odbornou kalkulaci je potřeba kontaktovat dodavatele těchto systémů a finanční odborníky.
B24: Obecné používání:
B27: Tento dokument byl vytvořen v Microsoft Excel 2010. Ve starších verzích nemusejí veškeré funkce pracovat správně. Zejména Makra Celý dokument je uzamčen, aby bylo zabráněno nechtěným změnám v tomto dokumentu. Buňky, do kterých se dá psát, jsou označeny modře, nacházejí se pouze na listech ‘Výdaje - příjmy’, ’Citlivostní a. – elektrina’ a ‘Citlivostní a. – cena panelu’. Nástroj vypočítáva ekonomická kritéria pro hodnocení zcela automaticky po zadání potřebných vstupních hodnot. Pro vytvoření grafů citlovstních analýz cen elektřiny a cen panelu je potřeba mít zapnutá MAKRA. V případě, že makra nejde z jakéhokoliv důvodu použít, je možnost využít funkci “Řešitel (Goal Seek)” a vypočtené hodnoty zadat do tabulky ručně.
B39: Doufám, že Vám tento nástroj pomůže a že splní svůj účel. V případě dotazů případně výtek mne můžete kontaktovat na: Novakp81@fel.cvut.cz Petr,novak.alpine@gmail.com Děkuji Vám Petr Novák (autor)

Sheet Náklady - výnosy
B2: Náklady | L2: Ekonomické ukazatele | P2: Výnosy | V2: Meziroční nárůst cenové hladiny
B3: Investiční | L3: Ukazatel | M3: Symbol | N3: Hodnota | P3: Množství dodané energie do sítě | V3: Položka | X3: Ano/Ne | Y3: Meziroční % rozdíl
B4: Položka | D4: Životnost (let) | E4: Symbol | F4: Jednotková cena | G4: Měna | H4: CZK | I4: Počet jednotek | J4: Celkem | L4: Reálný diskont | M4: r | N4: 0.08 | P4: Data ze simulace/ měření | S4: 1070.6 | T4: MWh | V4: Provozní - Osobní | X4: Ano | Y4: 0.01
B5: FV Panel | D5: 25 | E5: NFVP | F5: 500 | G5: $ | H5: =IF(G5=$L$13,F5*$M$13,IF(G5=$L$14,F5*$M$14,F5)) -> 12500 | I5: 2400 | J5: =I5*H5 -> 30000000 | L5: Inflace | M5: α | N5: 0.02 | V5: Provozní - Údržba + oprava | X5: Ne | Y5: 0.02
B6: Střídač | D6: 25 | E6: NINV | F6: 108000 | G6: $ | H6: =IF(G6=$L$13,F6*$M$13,IF(G6=$L$14,F6*$M$14,F6)) -> 2700000 | I6: 2 | J6: =I6*H6 -> 5400000 | L6: Nominální diskont | M6: rn | N6: =(1+$N$4)*(1+$N$5)-1 -> 0.1016 | P6: Pomocný výpočet pokud nejsou data k dispozici | V6: Provozní náhradní díly | X6: Ano | Y6: 0.01
B7: Kabel SS | D7: 15 | E7: NKss | F7: 100 | G7: Kč | H7: 100 | I7: 11600 | J7: 1160000 | L7: Daňová sazba | M7: τ | N7: 0.19 | P7: Instalovaný výkon | S7: 1044 | T7: KWp | V7: Provozní jiné | X7: Ne | Y7: 0.02
B8: Kabel Stř | D8: 15 | E8: Nkst | F8: 300 | G8: Kč | H8: 300 | I8: 200 | J8: 60000 | P8: Dopadající výkon solárního záření za rok | S8: 1250 | T8: kWh/m2/rok | V8: Výkupní cena | X8: Ano | Y8: 0.03
B9: Nosné konstrukce | D9: 25 | E9: Nkon | F9: 30000 | G9: Kč | H9: 30000 | I9: 200 | J9: 6000000 | P9: Účinnost systému | S9: 0.85 | T9: [-]
B10: Projekt | D10: 25 | E10: Npro | F10: 100000 | G10: Kč | H10: 100000 | I10: 1 | J10: 100000 | L10: Použité měny | P10: Vyrobené energie | S10: =S7*S8*S9/1000 -> 1109.25 | T10: MWh
B11: Transformátor | D11: 25 | E11: Ntrf | F11: 7500 | G11: € | H11: 202500 | I11: 2 | J11: 405000 | L11: Měna | M11: Kurz vůči CZK
B12: Ochrana Stringů | D12: 10 | E12: Npoj | F12: 200 | G12: Kč | H12: 200 | I12: 400 | J12: 80000 | L12: Kč | M12: 1 | P12: Degradace systému
B13: Odpojovače | D13: 20 | E13: Nodp | F13: 4000 | G13: Kč | H13: 4000 | I13: 20 | J13: 80000 | L13: € | M13: 27 | P13: Meziroční snižování výkonu | S13: 0.005 | T13: % / rok
B14: Montáž | D14: 25 | E14: Nmon | F14: 1000000 | G14: Kč | H14: 1000000 | I14: 1 | J14: 1000000 | L14: $ | M14: 25
B15: Oplocení | D15: 25 | E15: Nopl | F15: 300000 | G15: Kč | H15: 300000 | I15: 1 | J15: 300000 | P15: Výkupní cena elektřiny
B16: Monitorovací zařízení | D16: 10 | E16: Nmon | F16: 30000 | G16: Kč | H16: 30000 | I16: 1 | J16: 30000 | P16: Výkupní cena 1 MWh v 1. roce | S16: Měna | T16: CZK/MWh
B17: Doprava a logistika | D17: 25 | E17: Ndop | F17: 150000 | G17: Kč | H17: 150000 | I17: 1 | J17: 150000 | P17: 35 | S17: € | T17: =IF(S17=$L$13,P17*$M$13,IF(S17=$L$14,P17*$M$14,P17)) -> 945
B18: Pozemek | D18: 25 | E18: Npoz | F18: 600000 | G18: Kč | H18: 600000 | I18: 1 | J18: 600000 | L18: Daňové odpisy
B19: Přípojka | D19: 25 | E19: Npři | F19: 30000 | H19: 30000 | I19: 1 | J19: 30000 | L19: Odpisová skupina | N19: 4
B20: Elektroměr | D20: 20 | E20: Nelm | F20: 10000 | H20: 10000 | I20: 1 | J20: 10000 | L20: Doba odpisování | N20: 20
B21: Ochranné prvky, zemnění | D21: 25 | E21: Noch | F21: 40000 | H21: 40000 | I21: 1 | J21: 40000 | L21: Daňový odpis 1. rok | N21: 0.0215
B22: PV Combiner Box | D22: 13 | E22: Nbox | F22: 3000 | G22: Kč | H22: 3000 | I22: 16 | J22: 48000 | L22: Odpisy v následujícíh letech | N22: 0.0515 | O22: =IF((N21+(N20-1)*N22)=1,"","Pozor! Odpisy netvoří 100 %") -> 
B23: DC/DC Converter s MPPT | D23: 25 | E23: NDCC | F23: 20000 | G23: Kč | H23: 20000 | I23: 8 | J23: 160000
H24: 0 | J24: 0
H25: 0 | J25: 0
H26: 0 | J26: 0
H27: 0 | J27: 0
H28: 0 | J28: 0
B29: Součet | F29: - | J29: =SUM(J5:J28) -> 45653000 | L29: Dotace
L31: Dotace investiční
L32: 0
B33: Provozní | L33: Provozní
B34: Položka | C34: Kategorie | D34: Počet ročně | E34: Symbol | F34: Jednotková cena | G34: Měna | H34: CZK | I34: Počet jednotek | J34: Celkem | L34: Roční částka | M34: Na kolik let
B35: Administrace | C35: Režijní + Jiné | D35: 12 | E35: Nadm | F35: 8000 | G35: Kč | H35: =IF(G35=$L$13,F35*$M$13,IF(G35=$L$14,F35*$M$14,F35))*D35 -> 96000 | I35: 1 | J35: =H35*I35 -> 96000 | L35: 0 | M35: 0
B36: Udržba pozemku | C36: Údržba + opravy | D36: 6 | E36: Nudr | F36: 5000 | G36: Kč | H36: =IF(G36=$L$13,F36*$M$13,IF(G36=$L$14,F36*$M$14,F36))*D36 -> 30000 | I36: 1 | J36: 30000
B37: Práce na systému | C37: Údržba + opravy | D37: 2 | E37: Npra | F37: 5000 | G37: Kč | H37: =IF(G37=$L$13,F37*$M$13,IF(G37=$L$14,F37*$M$14,F37))*D37 -> 10000 | I37: 1 | J37: 10000
B38: Revize systému | C38: Údržba + opravy | D38: 1 | E38: Nrev | F38: 20000 | G38: Kč | H38: =IF(G38=$L$13,F38*$M$13,IF(G38=$L$14,F38*$M$14,F38))*D38 -> 20000 | I38: 1 | J38: 20000
B39: Pojištění | C39: Režijní + Jiné | D39: 1 | E39: Npoj | F39: 10000 | G39: Kč | H39: =IF(G39=$L$13,F39*$M$13,IF(G39=$L$14,F39*$M$14,F39))*D39 -> 10000 | I39: 1 | J39: 10000
D40: 0 | H40: =IF(G40=$L$13,F40*$M$13,IF(G40=$L$14,F40*$M$14,F40))*D40 -> 0 | J40: 0
D41: 0 | H41: 0 | J41: 0
D42: 0 | H42: 0 | J42: 0
D43: 0 | H43: 0 | J43: =H43*I43 -> 0
D44: 0 | H44: 0 | J44: 0
D45: 0 | H45: 0 | J45: 0
D46: 0 | H46: 0 | J46: 0
D47: 0 | H47: 0 | J47: 0
D48: 1 | H48: =IF(G48=$L$13,F48*$M$13,IF(G48=$L$14,F48*$M$14,F48))*D48 -> 0 | J48: 0
D49: 0 | H49: =IF(G49=$L$13,F49*$M$13,IF(G49=$L$14,F49*$M$14,F49))*D49 -> 0 | J49: 0
D50: 0 | H50: =IF(G50=$L$13,F50*$M$13,IF(G50=$L$14,F50*$M$14,F50))*D50 -> 0 | J50: 0
D51: 0 | H51: =IF(G51=$L$13,F51*$M$13,IF(G51=$L$14,F51*$M$14,F51))*D51 -> 0 | J51: =H51*I51 -> 0
B52: Součet | I52: Osobní | J52: =SUMIF($C$35:$C$51,I52,$J$35:$J$51) -> 0
I53: Údržba + opravy | J53: =SUMIF($C$35:$C$51,I53,$J$35:$J$51) -> 60000
I54: Náhradní díly | J54: =SUMIF($C$35:$C$51,I54,$J$35:$J$51) -> 0
I55: Režijní + Jiné | J55: =SUMIF($C$35:$C$51,I55,$J$35:$J$51) + SUMIF($C$35:$C$51,"",$J$35:$J$51) -> 106000
B60: Ano
B61: Ne

Sheet Provozní - náhradní díly
D2: Rok
B3: Prvek | C3: Životnost | D3: 1 | E3: 2 | F3: 3 | G3: 4 | H3: 5 | I3: 6 | J3: 7 | K3: 8 | L3: 9 | M3: 10 | N3: 11 | O3: 12 | P3: 13 | Q3: 14 | R3: 15 | S3: 16 | T3: 17 | U3: 18 | V3: 19 | W3: 20 | X3: 21 | Y3: 22 | Z3: 23 | AA3: 24 | AB3: 25
B4: ='Náklady - výnosy'!B5 -> FV Panel | C4: ='Náklady - výnosy'!D5 -> 25 | D4: 0 | E4: =IF($C4=0,0,IF(MOD(E$3,$C4)=0,'Náklady - výnosy'!$J5,0)) -> 0 | F4: =IF($C4=0,0,IF(MOD(F$3,$C4)=0,'Náklady - výnosy'!$J5,0)) -> 0 | G4: =IF($C4=0,0,IF(MOD(G$3,$C4)=0,'Náklady - výnosy'!$J5,0)) -> 0 | H4: =IF($C4=0,0,IF(MOD(H$3,$C4)=0,'Náklady - výnosy'!$J5,0)) -> 0 | I4: =IF($C4=0,0,IF(MOD(I$3,$C4)=0,'Náklady - výnosy'!$J5,0)) -> 0 | J4: =IF($C4=0,0,IF(MOD(J$3,$C4)=0,'Náklady - výnosy'!$J5,0)) -> 0 | K4: =IF($C4=0,0,IF(MOD(K$3,$C4)=0,'Náklady - výnosy'!$J5,0)) -> 0 | L4: =IF($C4=0,0,IF(MOD(L$3,$C4)=0,'Náklady - výnosy'!$J5,0)) -> 0 | M4: =IF($C4=0,0,IF(MOD(M$3,$C4)=0,'Náklady - výnosy'!$J5,0)) -> 0 | N4: =IF($C4=0,0,IF(MOD(N$3,$C4)=0,'Náklady - výnosy'!$J5,0)) -> 0 | O4: =IF($C4=0,0,IF(MOD(O$3,$C4)=0,'Náklady - výnosy'!$J5,0)) -> 0 | P4: =IF($C4=0,0,IF(MOD(P$3,$C4)=0,'Náklady - výnosy'!$J5,0)) -> 0 | Q4: =IF($C4=0,0,IF(MOD(Q$3,$C4)=0,'Náklady - výnosy'!$J5,0)) -> 0 | R4: =IF($C4=0,0,IF(MOD(R$3,$C4)=0,'Náklady - výnosy'!$J5,0)) -> 0 | S4: =IF($C4=0,0,IF(MOD(S$3,$C4)=0,'Náklady - výnosy'!$J5,0)) -> 0 | T4: =IF($C4=0,0,IF(MOD(T$3,$C4)=0,'Náklady - výnosy'!$J5,0)) -> 0 | U4: =IF($C4=0,0,IF(MOD(U$3,$C4)=0,'Náklady - výnosy'!$J5,0)) -> 0 | V4: =IF($C4=0,0,IF(MOD(V$3,$C4)=0,'Náklady - výnosy'!$J5,0)) -> 0 | W4: =IF($C4=0,0,IF(MOD(W$3,$C4)=0,'Náklady - výnosy'!$J5,0)) -> 0 | X4: =IF($C4=0,0,IF(MOD(X$3,$C4)=0,'Náklady - výnosy'!$J5,0)) -> 0 | Y4: =IF($C4=0,0,IF(MOD(Y$3,$C4)=0,'Náklady - výnosy'!$J5,0)) -> 0 | Z4: =IF($C4=0,0,IF(MOD(Z$3,$C4)=0,'Náklady - výnosy'!$J5,0)) -> 0 | AA4: =IF($C4=0,0,IF(MOD(AA$3,$C4)=0,'Náklady - výnosy'!$J5,0)) -> 0 | AB4: 0
B5: ='Náklady - výnosy'!B6 -> Střídač | C5: ='Náklady - výnosy'!D6 -> 25 | D5: 0 | E5: =IF($C5=0,0,IF(MOD(E$3,$C5)=0,'Náklady - výnosy'!$J6,0)) -> 0 | F5: =IF($C5=0,0,IF(MOD(F$3,$C5)=0,'Náklady - výnosy'!$J6,0)) -> 0 | G5: =IF($C5=0,0,IF(MOD(G$3,$C5)=0,'Náklady - výnosy'!$J6,0)) -> 0 | H5: =IF($C5=0,0,IF(MOD(H$3,$C5)=0,'Náklady - výnosy'!$J6,0)) -> 0 | I5: =IF($C5=0,0,IF(MOD(I$3,$C5)=0,'Náklady - výnosy'!$J6,0)) -> 0 | J5: =IF($C5=0,0,IF(MOD(J$3,$C5)=0,'Náklady - výnosy'!$J6,0)) -> 0 | K5: =IF($C5=0,0,IF(MOD(K$3,$C5)=0,'Náklady - výnosy'!$J6,0)) -> 0 | L5: =IF($C5=0,0,IF(MOD(L$3,$C5)=0,'Náklady - výnosy'!$J6,0)) -> 0 | M5: =IF($C5=0,0,IF(MOD(M$3,$C5)=0,'Náklady - výnosy'!$J6,0)) -> 0 | N5: =IF($C5=0,0,IF(MOD(N$3,$C5)=0,'Náklady - výnosy'!$J6,0)) -> 0 | O5: =IF($C5=0,0,IF(MOD(O$3,$C5)=0,'Náklady - výnosy'!$J6,0)) -> 0 | P5: =IF($C5=0,0,IF(MOD(P$3,$C5)=0,'Náklady - výnosy'!$J6,0)) -> 0 | Q5: =IF($C5=0,0,IF(MOD(Q$3,$C5)=0,'Náklady - výnosy'!$J6,0)) -> 0 | R5: =IF($C5=0,0,IF(MOD(R$3,$C5)=0,'Náklady - výnosy'!$J6,0)) -> 0 | S5: =IF($C5=0,0,IF(MOD(S$3,$C5)=0,'Náklady - výnosy'!$J6,0)) -> 0 | T5: =IF($C5=0,0,IF(MOD(T$3,$C5)=0,'Náklady - výnosy'!$J6,0)) -> 0 | U5: =IF($C5=0,0,IF(MOD(U$3,$C5)=0,'Náklady - výnosy'!$J6,0)) -> 0 | V5: =IF($C5=0,0,IF(MOD(V$3,$C5)=0,'Náklady - výnosy'!$J6,0)) -> 0 | W5: =IF($C5=0,0,IF(MOD(W$3,$C5)=0,'Náklady - výnosy'!$J6,0)) -> 0 | X5: =IF($C5=0,0,IF(MOD(X$3,$C5)=0,'Náklady - výnosy'!$J6,0)) -> 0 | Y5: =IF($C5=0,0,IF(MOD(Y$3,$C5)=0,'Náklady - výnosy'!$J6,0)) -> 0 | Z5: =IF($C5=0,0,IF(MOD(Z$3,$C5)=0,'Náklady - výnosy'!$J6,0)) -> 0 | AA5: =IF($C5=0,0,IF(MOD(AA$3,$C5)=0,'Náklady - výnosy'!$J6,0)) -> 0 | AB5: 0
B6: ='Náklady - výnosy'!B7 -> Kabel SS | C6: ='Náklady - výnosy'!D7 -> 15 | D6: 0 | E6: =IF($C6=0,0,IF(MOD(E$3,$C6)=0,'Náklady - výnosy'!$J7,0)) -> 0 | F6: =IF($C6=0,0,IF(MOD(F$3,$C6)=0,'Náklady - výnosy'!$J7,0)) -> 0 | G6: =IF($C6=0,0,IF(MOD(G$3,$C6)=0,'Náklady - výnosy'!$J7,0)) -> 0 | H6: =IF($C6=0,0,IF(MOD(H$3,$C6)=0,'Náklady - výnosy'!$J7,0)) -> 0 | I6: =IF($C6=0,0,IF(MOD(I$3,$C6)=0,'Náklady - výnosy'!$J7,0)) -> 0 | J6: =IF($C6=0,0,IF(MOD(J$3,$C6)=0,'Náklady - výnosy'!$J7,0)) -> 0 | K6: =IF($C6=0,0,IF(MOD(K$3,$C6)=0,'Náklady - výnosy'!$J7,0)) -> 0 | L6: =IF($C6=0,0,IF(MOD(L$3,$C6)=0,'Náklady - výnosy'!$J7,0)) -> 0 | M6: =IF($C6=0,0,IF(MOD(M$3,$C6)=0,'Náklady - výnosy'!$J7,0)) -> 0 | N6: =IF($C6=0,0,IF(MOD(N$3,$C6)=0,'Náklady - výnosy'!$J7,0)) -> 0 | O6: =IF($C6=0,0,IF(MOD(O$3,$C6)=0,'Náklady - výnosy'!$J7,0)) -> 0 | P6: =IF($C6=0,0,IF(MOD(P$3,$C6)=0,'Náklady - výnosy'!$J7,0)) -> 0 | Q6: =IF($C6=0,0,IF(MOD(Q$3,$C6)=0,'Náklady - výnosy'!$J7,0)) -> 0 | R6: =IF($C6=0,0,IF(MOD(R$3,$C6)=0,'Náklady - výnosy'!$J7,0)) -> 1160000 | S6: =IF($C6=0,0,IF(MOD(S$3,$C6)=0,'Náklady - výnosy'!$J7,0)) -> 0 | T6: =IF($C6=0,0,IF(MOD(T$3,$C6)=0,'Náklady - výnosy'!$J7,0)) -> 0 | U6: =IF($C6=0,0,IF(MOD(U$3,$C6)=0,'Náklady - výnosy'!$J7,0)) -> 0 | V6: =IF($C6=0,0,IF(MOD(V$3,$C6)=0,'Náklady - výnosy'!$J7,0)) -> 0 | W6: =IF($C6=0,0,IF(MOD(W$3,$C6)=0,'Náklady - výnosy'!$J7,0)) -> 0 | X6: =IF($C6=0,0,IF(MOD(X$3,$C6)=0,'Náklady - výnosy'!$J7,0)) -> 0 | Y6: =IF($C6=0,0,IF(MOD(Y$3,$C6)=0,'Náklady - výnosy'!$J7,0)) -> 0 | Z6: =IF($C6=0,0,IF(MOD(Z$3,$C6)=0,'Náklady - výnosy'!$J7,0)) -> 0 | AA6: =IF($C6=0,0,IF(MOD(AA$3,$C6)=0,'Náklady - výnosy'!$J7,0)) -> 0 | AB6: 0
B7: ='Náklady - výnosy'!B8 -> Kabel Stř | C7: ='Náklady - výnosy'!D8 -> 15 | D7: 0 | E7: =IF($C7=0,0,IF(MOD(E$3,$C7)=0,'Náklady - výnosy'!$J8,0)) -> 0 | F7: =IF($C7=0,0,IF(MOD(F$3,$C7)=0,'Náklady - výnosy'!$J8,0)) -> 0 | G7: =IF($C7=0,0,IF(MOD(G$3,$C7)=0,'Náklady - výnosy'!$J8,0)) -> 0 | H7: =IF($C7=0,0,IF(MOD(H$3,$C7)=0,'Náklady - výnosy'!$J8,0)) -> 0 | I7: =IF($C7=0,0,IF(MOD(I$3,$C7)=0,'Náklady - výnosy'!$J8,0)) -> 0 | J7: =IF($C7=0,0,IF(MOD(J$3,$C7)=0,'Náklady - výnosy'!$J8,0)) -> 0 | K7: =IF($C7=0,0,IF(MOD(K$3,$C7)=0,'Náklady - výnosy'!$J8,0)) -> 0 | L7: =IF($C7=0,0,IF(MOD(L$3,$C7)=0,'Náklady - výnosy'!$J8,0)) -> 0 | M7: =IF($C7=0,0,IF(MOD(M$3,$C7)=0,'Náklady - výnosy'!$J8,0)) -> 0 | N7: =IF($C7=0,0,IF(MOD(N$3,$C7)=0,'Náklady - výnosy'!$J8,0)) -> 0 | O7: =IF($C7=0,0,IF(MOD(O$3,$C7)=0,'Náklady - výnosy'!$J8,0)) -> 0 | P7: =IF($C7=0,0,IF(MOD(P$3,$C7)=0,'Náklady - výnosy'!$J8,0)) -> 0 | Q7: =IF($C7=0,0,IF(MOD(Q$3,$C7)=0,'Náklady - výnosy'!$J8,0)) -> 0 | R7: =IF($C7=0,0,IF(MOD(R$3,$C7)=0,'Náklady - výnosy'!$J8,0)) -> 60000 | S7: =IF($C7=0,0,IF(MOD(S$3,$C7)=0,'Náklady - výnosy'!$J8,0)) -> 0 | T7: =IF($C7=0,0,IF(MOD(T$3,$C7)=0,'Náklady - výnosy'!$J8,0)) -> 0 | U7: =IF($C7=0,0,IF(MOD(U$3,$C7)=0,'Náklady - výnosy'!$J8,0)) -> 0 | V7: =IF($C7=0,0,IF(MOD(V$3,$C7)=0,'Náklady - výnosy'!$J8,0)) -> 0 | W7: =IF($C7=0,0,IF(MOD(W$3,$C7)=0,'Náklady - výnosy'!$J8,0)) -> 0 | X7: =IF($C7=0,0,IF(MOD(X$3,$C7)=0,'Náklady - výnosy'!$J8,0)) -> 0 | Y7: =IF($C7=0,0,IF(MOD(Y$3,$C7)=0,'Náklady - výnosy'!$J8,0)) -> 0 | Z7: =IF($C7=0,0,IF(MOD(Z$3,$C7)=0,'Náklady - výnosy'!$J8,0)) -> 0 | AA7: =IF($C7=0,0,IF(MOD(AA$3,$C7)=0,'Náklady - výnosy'!$J8,0)) -> 0 | AB7: 0
B8: ='Náklady - výnosy'!B9 -> Nosné konstrukce | C8: ='Náklady - výnosy'!D9 -> 25 | D8: 0 | E8: =IF($C8=0,0,IF(MOD(E$3,$C8)=0,'Náklady - výnosy'!$J9,0)) -> 0 | F8: =IF($C8=0,0,IF(MOD(F$3,$C8)=0,'Náklady - výnosy'!$J9,0)) -> 0 | G8: =IF($C8=0,0,IF(MOD(G$3,$C8)=0,'Náklady - výnosy'!$J9,0)) -> 0 | H8: =IF($C8=0,0,IF(MOD(H$3,$C8)=0,'Náklady - výnosy'!$J9,0)) -> 0 | I8: =IF($C8=0,0,IF(MOD(I$3,$C8)=0,'Náklady - výnosy'!$J9,0)) -> 0 | J8: =IF($C8=0,0,IF(MOD(J$3,$C8)=0,'Náklady - výnosy'!$J9,0)) -> 0 | K8: =IF($C8=0,0,IF(MOD(K$3,$C8)=0,'Náklady - výnosy'!$J9,0)) -> 0 | L8: =IF($C8=0,0,IF(MOD(L$3,$C8)=0,'Náklady - výnosy'!$J9,0)) -> 0 | M8: =IF($C8=0,0,IF(MOD(M$3,$C8)=0,'Náklady - výnosy'!$J9,0)) -> 0 | N8: =IF($C8=0,0,IF(MOD(N$3,$C8)=0,'Náklady - výnosy'!$J9,0)) -> 0 | O8: =IF($C8=0,0,IF(MOD(O$3,$C8)=0,'Náklady - výnosy'!$J9,0)) -> 0 | P8: =IF($C8=0,0,IF(MOD(P$3,$C8)=0,'Náklady - výnosy'!$J9,0)) -> 0 | Q8: =IF($C8=0,0,IF(MOD(Q$3,$C8)=0,'Náklady - výnosy'!$J9,0)) -> 0 | R8: =IF($C8=0,0,IF(MOD(R$3,$C8)=0,'Náklady - výnosy'!$J9,0)) -> 0 | S8: =IF($C8=0,0,IF(MOD(S$3,$C8)=0,'Náklady - výnosy'!$J9,0)) -> 0 | T8: =IF($C8=0,0,IF(MOD(T$3,$C8)=0,'Náklady - výnosy'!$J9,0)) -> 0 | U8: =IF($C8=0,0,IF(MOD(U$3,$C8)=0,'Náklady - výnosy'!$J9,0)) -> 0 | V8: =IF($C8=0,0,IF(MOD(V$3,$C8)=0,'Náklady - výnosy'!$J9,0)) -> 0 | W8: =IF($C8=0,0,IF(MOD(W$3,$C8)=0,'Náklady - výnosy'!$J9,0)) -> 0 | X8: =IF($C8=0,0,IF(MOD(X$3,$C8)=0,'Náklady - výnosy'!$J9,0)) -> 0 | Y8: =IF($C8=0,0,IF(MOD(Y$3,$C8)=0,'Náklady - výnosy'!$J9,0)) -> 0 | Z8: =IF($C8=0,0,IF(MOD(Z$3,$C8)=0,'Náklady - výnosy'!$J9,0)) -> 0 | AA8: =IF($C8=0,0,IF(MOD(AA$3,$C8)=0,'Náklady - výnosy'!$J9,0)) -> 0 | AB8: 0
B9: ='Náklady - výnosy'!B10 -> Projekt | C9: ='Náklady - výnosy'!D10 -> 25 | D9: 0 | E9: =IF($C9=0,0,IF(MOD(E$3,$C9)=0,'Náklady - výnosy'!$J10,0)) -> 0 | F9: =IF($C9=0,0,IF(MOD(F$3,$C9)=0,'Náklady - výnosy'!$J10,0)) -> 0 | G9: =IF($C9=0,0,IF(MOD(G$3,$C9)=0,'Náklady - výnosy'!$J10,0)) -> 0 | H9: =IF($C9=0,0,IF(MOD(H$3,$C9)=0,'Náklady - výnosy'!$J10,0)) -> 0 | I9: =IF($C9=0,0,IF(MOD(I$3,$C9)=0,'Náklady - výnosy'!$J10,0)) -> 0 | J9: =IF($C9=0,0,IF(MOD(J$3,$C9)=0,'Náklady - výnosy'!$J10,0)) -> 0 | K9: =IF($C9=0,0,IF(MOD(K$3,$C9)=0,'Náklady - výnosy'!$J10,0)) -> 0 | L9: =IF($C9=0,0,IF(MOD(L$3,$C9)=0,'Náklady - výnosy'!$J10,0)) -> 0 | M9: =IF($C9=0,0,IF(MOD(M$3,$C9)=0,'Náklady - výnosy'!$J10,0)) -> 0 | N9: =IF($C9=0,0,IF(MOD(N$3,$C9)=0,'Náklady - výnosy'!$J10,0)) -> 0 | O9: =IF($C9=0,0,IF(MOD(O$3,$C9)=0,'Náklady - výnosy'!$J10,0)) -> 0 | P9: =IF($C9=0,0,IF(MOD(P$3,$C9)=0,'Náklady - výnosy'!$J10,0)) -> 0 | Q9: =IF($C9=0,0,IF(MOD(Q$3,$C9)=0,'Náklady - výnosy'!$J10,0)) -> 0 | R9: =IF($C9=0,0,IF(MOD(R$3,$C9)=0,'Náklady - výnosy'!$J10,0)) -> 0 | S9: =IF($C9=0,0,IF(MOD(S$3,$C9)=0,'Náklady - výnosy'!$J10,0)) -> 0 | T9: =IF($C9=0,0,IF(MOD(T$3,$C9)=0,'Náklady - výnosy'!$J10,0)) -> 0 | U9: =IF($C9=0,0,IF(MOD(U$3,$C9)=0,'Náklady - výnosy'!$J10,0)) -> 0 | V9: =IF($C9=0,0,IF(MOD(V$3,$C9)=0,'Náklady - výnosy'!$J10,0)) -> 0 | W9: =IF($C9=0,0,IF(MOD(W$3,$C9)=0,'Náklady - výnosy'!$J10,0)) -> 0 | X9: =IF($C9=0,0,IF(MOD(X$3,$C9)=0,'Náklady - výnosy'!$J10,0)) -> 0 | Y9: =IF($C9=0,0,IF(MOD(Y$3,$C9)=0,'Náklady - výnosy'!$J10,0)) -> 0 | Z9: =IF($C9=0,0,IF(MOD(Z$3,$C9)=0,'Náklady - výnosy'!$J10,0)) -> 0 | AA9: =IF($C9=0,0,IF(MOD(AA$3,$C9)=0,'Náklady - výnosy'!$J10,0)) -> 0 | AB9: 0
B10: ='Náklady - výnosy'!B11 -> Transformátor | C10: ='Náklady - výnosy'!D11 -> 25 | D10: 0 | E10: =IF($C10=0,0,IF(MOD(E$3,$C10)=0,'Náklady - výnosy'!$J11,0)) -> 0 | F10: =IF($C10=0,0,IF(MOD(F$3,$C10)=0,'Náklady - výnosy'!$J11,0)) -> 0 | G10: =IF($C10=0,0,IF(MOD(G$3,$C10)=0,'Náklady - výnosy'!$J11,0)) -> 0 | H10: =IF($C10=0,0,IF(MOD(H$3,$C10)=0,'Náklady - výnosy'!$J11,0)) -> 0 | I10: =IF($C10=0,0,IF(MOD(I$3,$C10)=0,'Náklady - výnosy'!$J11,0)) -> 0 | J10: =IF($C10=0,0,IF(MOD(J$3,$C10)=0,'Náklady - výnosy'!$J11,0)) -> 0 | K10: =IF($C10=0,0,IF(MOD(K$3,$C10)=0,'Náklady - výnosy'!$J11,0)) -> 0 | L10: =IF($C10=0,0,IF(MOD(L$3,$C10)=0,'Náklady - výnosy'!$J11,0)) -> 0 | M10: =IF($C10=0,0,IF(MOD(M$3,$C10)=0,'Náklady - výnosy'!$J11,0)) -> 0 | N10: =IF($C10=0,0,IF(MOD(N$3,$C10)=0,'Náklady - výnosy'!$J11,0)) -> 0 | O10: =IF($C10=0,0,IF(MOD(O$3,$C10)=0,'Náklady - výnosy'!$J11,0)) -> 0 | P10: =IF($C10=0,0,IF(MOD(P$3,$C10)=0,'Náklady - výnosy'!$J11,0)) -> 0 | Q10: =IF($C10=0,0,IF(MOD(Q$3,$C10)=0,'Náklady - výnosy'!$J11,0)) -> 0 | R10: =IF($C10=0,0,IF(MOD(R$3,$C10)=0,'Náklady - výnosy'!$J11,0)) -> 0 | S10: =IF($C10=0,0,IF(MOD(S$3,$C10)=0,'Náklady - výnosy'!$J11,0)) -> 0 | T10: =IF($C10=0,0,IF(MOD(T$3,$C10)=0,'Náklady - výnosy'!$J11,0)) -> 0 | U10: =IF($C10=0,0,IF(MOD(U$3,$C10)=0,'Náklady - výnosy'!$J11,0)) -> 0 | V10: =IF($C10=0,0,IF(MOD(V$3,$C10)=0,'Náklady - výnosy'!$J11,0)) -> 0 | W10: =IF($C10=0,0,IF(MOD(W$3,$C10)=0,'Náklady - výnosy'!$J11,0)) -> 0 | X10: =IF($C10=0,0,IF(MOD(X$3,$C10)=0,'Náklady - výnosy'!$J11,0)) -> 0 | Y10: =IF($C10=0,0,IF(MOD(Y$3,$C10)=0,'Náklady - výnosy'!$J11,0)) -> 0 | Z10: =IF($C10=0,0,IF(MOD(Z$3,$C10)=0,'Náklady - výnosy'!$J11,0)) -> 0 | AA10: =IF($C10=0,0,IF(MOD(AA$3,$C10)=0,'Náklady - výnosy'!$J11,0)) -> 0 | AB10: 0
B11: ='Náklady - výnosy'!B12 -> Ochrana Stringů | C11: ='Náklady - výnosy'!D12 -> 10 | D11: 0 | E11: =IF($C11=0,0,IF(MOD(E$3,$C11)=0,'Náklady - výnosy'!$J12,0)) -> 0 | F11: =IF($C11=0,0,IF(MOD(F$3,$C11)=0,'Náklady - výnosy'!$J12,0)) -> 0 | G11: =IF($C11=0,0,IF(MOD(G$3,$C11)=0,'Náklady - výnosy'!$J12,0)) -> 0 | H11: =IF($C11=0,0,IF(MOD(H$3,$C11)=0,'Náklady - výnosy'!$J12,0)) -> 0 | I11: =IF($C11=0,0,IF(MOD(I$3,$C11)=0,'Náklady - výnosy'!$J12,0)) -> 0 | J11: =IF($C11=0,0,IF(MOD(J$3,$C11)=0,'Náklady - výnosy'!$J12,0)) -> 0 | K11: =IF($C11=0,0,IF(MOD(K$3,$C11)=0,'Náklady - výnosy'!$J12,0)) -> 0 | L11: =IF($C11=0,0,IF(MOD(L$3,$C11)=0,'Náklady - výnosy'!$J12,0)) -> 0 | M11: =IF($C11=0,0,IF(MOD(M$3,$C11)=0,'Náklady - výnosy'!$J12,0)) -> 80000 | N11: =IF($C11=0,0,IF(MOD(N$3,$C11)=0,'Náklady - výnosy'!$J12,0)) -> 0 | O11: =IF($C11=0,0,IF(MOD(O$3,$C11)=0,'Náklady - výnosy'!$J12,0)) -> 0 | P11: =IF($C11=0,0,IF(MOD(P$3,$C11)=0,'Náklady - výnosy'!$J12,0)) -> 0 | Q11: =IF($C11=0,0,IF(MOD(Q$3,$C11)=0,'Náklady - výnosy'!$J12,0)) -> 0 | R11: =IF($C11=0,0,IF(MOD(R$3,$C11)=0,'Náklady - výnosy'!$J12,0)) -> 0 | S11: =IF($C11=0,0,IF(MOD(S$3,$C11)=0,'Náklady - výnosy'!$J12,0)) -> 0 | T11: =IF($C11=0,0,IF(MOD(T$3,$C11)=0,'Náklady - výnosy'!$J12,0)) -> 0 | U11: =IF($C11=0,0,IF(MOD(U$3,$C11)=0,'Náklady - výnosy'!$J12,0)) -> 0 | V11: =IF($C11=0,0,IF(MOD(V$3,$C11)=0,'Náklady - výnosy'!$J12,0)) -> 0 | W11: =IF($C11=0,0,IF(MOD(W$3,$C11)=0,'Náklady - výnosy'!$J12,0)) -> 80000 | X11: =IF($C11=0,0,IF(MOD(X$3,$C11)=0,'Náklady - výnosy'!$J12,0)) -> 0 | Y11: =IF($C11=0,0,IF(MOD(Y$3,$C11)=0,'Náklady - výnosy'!$J12,0)) -> 0 | Z11: =IF($C11=0,0,IF(MOD(Z$3,$C11)=0,'Náklady - výnosy'!$J12,0)) -> 0 | AA11: =IF($C11=0,0,IF(MOD(AA$3,$C11)=0,'Náklady - výnosy'!$J12,0)) -> 0 | AB11: 0
B12: ='Náklady - výnosy'!B13 -> Odpojovače | C12: ='Náklady - výnosy'!D13 -> 20 | D12: 0 | E12: =IF($C12=0,0,IF(MOD(E$3,$C12)=0,'Náklady - výnosy'!$J13,0)) -> 0 | F12: =IF($C12=0,0,IF(MOD(F$3,$C12)=0,'Náklady - výnosy'!$J13,0)) -> 0 | G12: =IF($C12=0,0,IF(MOD(G$3,$C12)=0,'Náklady - výnosy'!$J13,0)) -> 0 | H12: =IF($C12=0,0,IF(MOD(H$3,$C12)=0,'Náklady - výnosy'!$J13,0)) -> 0 | I12: =IF($C12=0,0,IF(MOD(I$3,$C12)=0,'Náklady - výnosy'!$J13,0)) -> 0 | J12: =IF($C12=0,0,IF(MOD(J$3,$C12)=0,'Náklady - výnosy'!$J13,0)) -> 0 | K12: =IF($C12=0,0,IF(MOD(K$3,$C12)=0,'Náklady - výnosy'!$J13,0)) -> 0 | L12: =IF($C12=0,0,IF(MOD(L$3,$C12)=0,'Náklady - výnosy'!$J13,0)) -> 0 | M12: =IF($C12=0,0,IF(MOD(M$3,$C12)=0,'Náklady - výnosy'!$J13,0)) -> 0 | N12: =IF($C12=0,0,IF(MOD(N$3,$C12)=0,'Náklady - výnosy'!$J13,0)) -> 0 | O12: =IF($C12=0,0,IF(MOD(O$3,$C12)=0,'Náklady - výnosy'!$J13,0)) -> 0 | P12: =IF($C12=0,0,IF(MOD(P$3,$C12)=0,'Náklady - výnosy'!$J13,0)) -> 0 | Q12: =IF($C12=0,0,IF(MOD(Q$3,$C12)=0,'Náklady - výnosy'!$J13,0)) -> 0 | R12: =IF($C12=0,0,IF(MOD(R$3,$C12)=0,'Náklady - výnosy'!$J13,0)) -> 0 | S12: =IF($C12=0,0,IF(MOD(S$3,$C12)=0,'Náklady - výnosy'!$J13,0)) -> 0 | T12: =IF($C12=0,0,IF(MOD(T$3,$C12)=0,'Náklady - výnosy'!$J13,0)) -> 0 | U12: =IF($C12=0,0,IF(MOD(U$3,$C12)=0,'Náklady - výnosy'!$J13,0)) -> 0 | V12: =IF($C12=0,0,IF(MOD(V$3,$C12)=0,'Náklady - výnosy'!$J13,0)) -> 0 | W12: =IF($C12=0,0,IF(MOD(W$3,$C12)=0,'Náklady - výnosy'!$J13,0)) -> 80000 | X12: =IF($C12=0,0,IF(MOD(X$3,$C12)=0,'Náklady - výnosy'!$J13,0)) -> 0 | Y12: =IF($C12=0,0,IF(MOD(Y$3,$C12)=0,'Náklady - výnosy'!$J13,0)) -> 0 | Z12: =IF($C12=0,0,IF(MOD(Z$3,$C12)=0,'Náklady - výnosy'!$J13,0)) -> 0 | AA12: =IF($C12=0,0,IF(MOD(AA$3,$C12)=0,'Náklady - výnosy'!$J13,0)) -> 0 | AB12: 0
B13: ='Náklady - výnosy'!B14 -> Montáž | C13: ='Náklady - výnosy'!D14 -> 25 | D13: 0 | E13: =IF($C13=0,0,IF(MOD(E$3,$C13)=0,'Náklady - výnosy'!$J14,0)) -> 0 | F13: =IF($C13=0,0,IF(MOD(F$3,$C13)=0,'Náklady - výnosy'!$J14,0)) -> 0 | G13: =IF($C13=0,0,IF(MOD(G$3,$C13)=0,'Náklady - výnosy'!$J14,0)) -> 0 | H13: =IF($C13=0,0,IF(MOD(H$3,$C13)=0,'Náklady - výnosy'!$J14,0)) -> 0 | I13: =IF($C13=0,0,IF(MOD(I$3,$C13)=0,'Náklady - výnosy'!$J14,0)) -> 0 | J13: =IF($C13=0,0,IF(MOD(J$3,$C13)=0,'Náklady - výnosy'!$J14,0)) -> 0 | K13: =IF($C13=0,0,IF(MOD(K$3,$C13)=0,'Náklady - výnosy'!$J14,0)) -> 0 | L13: =IF($C13=0,0,IF(MOD(L$3,$C13)=0,'Náklady - výnosy'!$J14,0)) -> 0 | M13: =IF($C13=0,0,IF(MOD(M$3,$C13)=0,'Náklady - výnosy'!$J14,0)) -> 0 | N13: =IF($C13=0,0,IF(MOD(N$3,$C13)=0,'Náklady - výnosy'!$J14,0)) -> 0 | O13: =IF($C13=0,0,IF(MOD(O$3,$C13)=0,'Náklady - výnosy'!$J14,0)) -> 0 | P13: =IF($C13=0,0,IF(MOD(P$3,$C13)=0,'Náklady - výnosy'!$J14,0)) -> 0 | Q13: =IF($C13=0,0,IF(MOD(Q$3,$C13)=0,'Náklady - výnosy'!$J14,0)) -> 0 | R13: =IF($C13=0,0,IF(MOD(R$3,$C13)=0,'Náklady - výnosy'!$J14,0)) -> 0 | S13: =IF($C13=0,0,IF(MOD(S$3,$C13)=0,'Náklady - výnosy'!$J14,0)) -> 0 | T13: =IF($C13=0,0,IF(MOD(T$3,$C13)=0,'Náklady - výnosy'!$J14,0)) -> 0 | U13: =IF($C13=0,0,IF(MOD(U$3,$C13)=0,'Náklady - výnosy'!$J14,0)) -> 0 | V13: =IF($C13=0,0,IF(MOD(V$3,$C13)=0,'Náklady - výnosy'!$J14,0)) -> 0 | W13: =IF($C13=0,0,IF(MOD(W$3,$C13)=0,'Náklady - výnosy'!$J14,0)) -> 0 | X13: =IF($C13=0,0,IF(MOD(X$3,$C13)=0,'Náklady - výnosy'!$J14,0)) -> 0 | Y13: =IF($C13=0,0,IF(MOD(Y$3,$C13)=0,'Náklady - výnosy'!$J14,0)) -> 0 | Z13: =IF($C13=0,0,IF(MOD(Z$3,$C13)=0,'Náklady - výnosy'!$J14,0)) -> 0 | AA13: =IF($C13=0,0,IF(MOD(AA$3,$C13)=0,'Náklady - výnosy'!$J14,0)) -> 0 | AB13: 0
B14: ='Náklady - výnosy'!B15 -> Oplocení | C14: ='Náklady - výnosy'!D15 -> 25 | D14: 0 | E14: =IF($C14=0,0,IF(MOD(E$3,$C14)=0,'Náklady - výnosy'!$J15,0)) -> 0 | F14: =IF($C14=0,0,IF(MOD(F$3,$C14)=0,'Náklady - výnosy'!$J15,0)) -> 0 | G14: =IF($C14=0,0,IF(MOD(G$3,$C14)=0,'Náklady - výnosy'!$J15,0)) -> 0 | H14: =IF($C14=0,0,IF(MOD(H$3,$C14)=0,'Náklady - výnosy'!$J15,0)) -> 0 | I14: =IF($C14=0,0,IF(MOD(I$3,$C14)=0,'Náklady - výnosy'!$J15,0)) -> 0 | J14: =IF($C14=0,0,IF(MOD(J$3,$C14)=0,'Náklady - výnosy'!$J15,0)) -> 0 | K14: =IF($C14=0,0,IF(MOD(K$3,$C14)=0,'Náklady - výnosy'!$J15,0)) -> 0 | L14: =IF($C14=0,0,IF(MOD(L$3,$C14)=0,'Náklady - výnosy'!$J15,0)) -> 0 | M14: =IF($C14=0,0,IF(MOD(M$3,$C14)=0,'Náklady - výnosy'!$J15,0)) -> 0 | N14: =IF($C14=0,0,IF(MOD(N$3,$C14)=0,'Náklady - výnosy'!$J15,0)) -> 0 | O14: =IF($C14=0,0,IF(MOD(O$3,$C14)=0,'Náklady - výnosy'!$J15,0)) -> 0 | P14: =IF($C14=0,0,IF(MOD(P$3,$C14)=0,'Náklady - výnosy'!$J15,0)) -> 0 | Q14: =IF($C14=0,0,IF(MOD(Q$3,$C14)=0,'Náklady - výnosy'!$J15,0)) -> 0 | R14: =IF($C14=0,0,IF(MOD(R$3,$C14)=0,'Náklady - výnosy'!$J15,0)) -> 0 | S14: =IF($C14=0,0,IF(MOD(S$3,$C14)=0,'Náklady - výnosy'!$J15,0)) -> 0 | T14: =IF($C14=0,0,IF(MOD(T$3,$C14)=0,'Náklady - výnosy'!$J15,0)) -> 0 | U14: =IF($C14=0,0,IF(MOD(U$3,$C14)=0,'Náklady - výnosy'!$J15,0)) -> 0 | V14: =IF($C14=0,0,IF(MOD(V$3,$C14)=0,'Náklady - výnosy'!$J15,0)) -> 0 | W14: =IF($C14=0,0,IF(MOD(W$3,$C14)=0,'Náklady - výnosy'!$J15,0)) -> 0 | X14: =IF($C14=0,0,IF(MOD(X$3,$C14)=0,'Náklady - výnosy'!$J15,0)) -> 0 | Y14: =IF($C14=0,0,IF(MOD(Y$3,$C14)=0,'Náklady - výnosy'!$J15,0)) -> 0 | Z14: =IF($C14=0,0,IF(MOD(Z$3,$C14)=0,'Náklady - výnosy'!$J15,0)) -> 0 | AA14: =IF($C14=0,0,IF(MOD(AA$3,$C14)=0,'Náklady - výnosy'!$J15,0)) -> 0 | AB14: 0
B15: ='Náklady - výnosy'!B16 -> Monitorovací zařízení | C15: ='Náklady - výnosy'!D16 -> 10 | D15: 0 | E15: =IF($C15=0,0,IF(MOD(E$3,$C15)=0,'Náklady - výnosy'!$J16,0)) -> 0 | F15: =IF($C15=0,0,IF(MOD(F$3,$C15)=0,'Náklady - výnosy'!$J16,0)) -> 0 | G15: =IF($C15=0,0,IF(MOD(G$3,$C15)=0,'Náklady - výnosy'!$J16,0)) -> 0 | H15: =IF($C15=0,0,IF(MOD(H$3,$C15)=0,'Náklady - výnosy'!$J16,0)) -> 0 | I15: =IF($C15=0,0,IF(MOD(I$3,$C15)=0,'Náklady - výnosy'!$J16,0)) -> 0 | J15: =IF($C15=0,0,IF(MOD(J$3,$C15)=0,'Náklady - výnosy'!$J16,0)) -> 0 | K15: =IF($C15=0,0,IF(MOD(K$3,$C15)=0,'Náklady - výnosy'!$J16,0)) -> 0 | L15: =IF($C15=0,0,IF(MOD(L$3,$C15)=0,'Náklady - výnosy'!$J16,0)) -> 0 | M15: =IF($C15=0,0,IF(MOD(M$3,$C15)=0,'Náklady - výnosy'!$J16,0)) -> 30000 | N15: =IF($C15=0,0,IF(MOD(N$3,$C15)=0,'Náklady - výnosy'!$J16,0)) -> 0 | O15: =IF($C15=0,0,IF(MOD(O$3,$C15)=0,'Náklady - výnosy'!$J16,0)) -> 0 | P15: =IF($C15=0,0,IF(MOD(P$3,$C15)=0,'Náklady - výnosy'!$J16,0)) -> 0 | Q15: =IF($C15=0,0,IF(MOD(Q$3,$C15)=0,'Náklady - výnosy'!$J16,0)) -> 0 | R15: =IF($C15=0,0,IF(MOD(R$3,$C15)=0,'Náklady - výnosy'!$J16,0)) -> 0 | S15: =IF($C15=0,0,IF(MOD(S$3,$C15)=0,'Náklady - výnosy'!$J16,0)) -> 0 | T15: =IF($C15=0,0,IF(MOD(T$3,$C15)=0,'Náklady - výnosy'!$J16,0)) -> 0 | U15: =IF($C15=0,0,IF(MOD(U$3,$C15)=0,'Náklady - výnosy'!$J16,0)) -> 0 | V15: =IF($C15=0,0,IF(MOD(V$3,$C15)=0,'Náklady - výnosy'!$J16,0)) -> 0 | W15: =IF($C15=0,0,IF(MOD(W$3,$C15)=0,'Náklady - výnosy'!$J16,0)) -> 30000 | X15: =IF($C15=0,0,IF(MOD(X$3,$C15)=0,'Náklady - výnosy'!$J16,0)) -> 0 | Y15: =IF($C15=0,0,IF(MOD(Y$3,$C15)=0,'Náklady - výnosy'!$J16,0)) -> 0 | Z15: =IF($C15=0,0,IF(MOD(Z$3,$C15)=0,'Náklady - výnosy'!$J16,0)) -> 0 | AA15: =IF($C15=0,0,IF(MOD(AA$3,$C15)=0,'Náklady - výnosy'!$J16,0)) -> 0 | AB15: 0
B16: ='Náklady - výnosy'!B17 -> Doprava a logistika | C16: ='Náklady - výnosy'!D17 -> 25 | D16: 0 | E16: =IF($C16=0,0,IF(MOD(E$3,$C16)=0,'Náklady - výnosy'!$J17,0)) -> 0 | F16: =IF($C16=0,0,IF(MOD(F$3,$C16)=0,'Náklady - výnosy'!$J17,0)) -> 0 | G16: =IF($C16=0,0,IF(MOD(G$3,$C16)=0,'Náklady - výnosy'!$J17,0)) -> 0 | H16: =IF($C16=0,0,IF(MOD(H$3,$C16)=0,'Náklady - výnosy'!$J17,0)) -> 0 | I16: =IF($C16=0,0,IF(MOD(I$3,$C16)=0,'Náklady - výnosy'!$J17,0)) -> 0 | J16: =IF($C16=0,0,IF(MOD(J$3,$C16)=0,'Náklady - výnosy'!$J17,0)) -> 0 | K16: =IF($C16=0,0,IF(MOD(K$3,$C16)=0,'Náklady - výnosy'!$J17,0)) -> 0 | L16: =IF($C16=0,0,IF(MOD(L$3,$C16)=0,'Náklady - výnosy'!$J17,0)) -> 0 | M16: =IF($C16=0,0,IF(MOD(M$3,$C16)=0,'Náklady - výnosy'!$J17,0)) -> 0 | N16: =IF($C16=0,0,IF(MOD(N$3,$C16)=0,'Náklady - výnosy'!$J17,0)) -> 0 | O16: =IF($C16=0,0,IF(MOD(O$3,$C16)=0,'Náklady - výnosy'!$J17,0)) -> 0 | P16: =IF($C16=0,0,IF(MOD(P$3,$C16)=0,'Náklady - výnosy'!$J17,0)) -> 0 | Q16: =IF($C16=0,0,IF(MOD(Q$3,$C16)=0,'Náklady - výnosy'!$J17,0)) -> 0 | R16: =IF($C16=0,0,IF(MOD(R$3,$C16)=0,'Náklady - výnosy'!$J17,0)) -> 0 | S16: =IF($C16=0,0,IF(MOD(S$3,$C16)=0,'Náklady - výnosy'!$J17,0)) -> 0 | T16: =IF($C16=0,0,IF(MOD(T$3,$C16)=0,'Náklady - výnosy'!$J17,0)) -> 0 | U16: =IF($C16=0,0,IF(MOD(U$3,$C16)=0,'Náklady - výnosy'!$J17,0)) -> 0 | V16: =IF($C16=0,0,IF(MOD(V$3,$C16)=0,'Náklady - výnosy'!$J17,0)) -> 0 | W16: =IF($C16=0,0,IF(MOD(W$3,$C16)=0,'Náklady - výnosy'!$J17,0)) -> 0 | X16: =IF($C16=0,0,IF(MOD(X$3,$C16)=0,'Náklady - výnosy'!$J17,0)) -> 0 | Y16: =IF($C16=0,0,IF(MOD(Y$3,$C16)=0,'Náklady - výnosy'!$J17,0)) -> 0 | Z16: =IF($C16=0,0,IF(MOD(Z$3,$C16)=0,'Náklady - výnosy'!$J17,0)) -> 0 | AA16: =IF($C16=0,0,IF(MOD(AA$3,$C16)=0,'Náklady - výnosy'!$J17,0)) -> 0 | AB16: 0
B17: ='Náklady - výnosy'!B18 -> Pozemek | C17: ='Náklady - výnosy'!D18 -> 25 | D17: 0 | E17: =IF($C17=0,0,IF(MOD(E$3,$C17)=0,'Náklady - výnosy'!$J18,0)) -> 0 | F17: =IF($C17=0,0,IF(MOD(F$3,$C17)=0,'Náklady - výnosy'!$J18,0)) -> 0 | G17: =IF($C17=0,0,IF(MOD(G$3,$C17)=0,'Náklady - výnosy'!$J18,0)) -> 0 | H17: =IF($C17=0,0,IF(MOD(H$3,$C17)=0,'Náklady - výnosy'!$J18,0)) -> 0 | I17: =IF($C17=0,0,IF(MOD(I$3,$C17)=0,'Náklady - výnosy'!$J18,0)) -> 0 | J17: =IF($C17=0,0,IF(MOD(J$3,$C17)=0,'Náklady - výnosy'!$J18,0)) -> 0 | K17: =IF($C17=0,0,IF(MOD(K$3,$C17)=0,'Náklady - výnosy'!$J18,0)) -> 0 | L17: =IF($C17=0,0,IF(MOD(L$3,$C17)=0,'Náklady - výnosy'!$J18,0)) -> 0 | M17: =IF($C17=0,0,IF(MOD(M$3,$C17)=0,'Náklady - výnosy'!$J18,0)) -> 0 | N17: =IF($C17=0,0,IF(MOD(N$3,$C17)=0,'Náklady - výnosy'!$J18,0)) -> 0 | O17: =IF($C17=0,0,IF(MOD(O$3,$C17)=0,'Náklady - výnosy'!$J18,0)) -> 0 | P17: =IF($C17=0,0,IF(MOD(P$3,$C17)=0,'Náklady - výnosy'!$J18,0)) -> 0 | Q17: =IF($C17=0,0,IF(MOD(Q$3,$C17)=0,'Náklady - výnosy'!$J18,0)) -> 0 | R17: =IF($C17=0,0,IF(MOD(R$3,$C17)=0,'Náklady - výnosy'!$J18,0)) -> 0 | S17: =IF($C17=0,0,IF(MOD(S$3,$C17)=0,'Náklady - výnosy'!$J18,0)) -> 0 | T17: =IF($C17=0,0,IF(MOD(T$3,$C17)=0,'Náklady - výnosy'!$J18,0)) -> 0 | U17: =IF($C17=0,0,IF(MOD(U$3,$C17)=0,'Náklady - výnosy'!$J18,0)) -> 0 | V17: =IF($C17=0,0,IF(MOD(V$3,$C17)=0,'Náklady - výnosy'!$J18,0)) -> 0 | W17: =IF($C17=0,0,IF(MOD(W$3,$C17)=0,'Náklady - výnosy'!$J18,0)) -> 0 | X17: =IF($C17=0,0,IF(MOD(X$3,$C17)=0,'Náklady - výnosy'!$J18,0)) -> 0 | Y17: =IF($C17=0,0,IF(MOD(Y$3,$C17)=0,'Náklady - výnosy'!$J18,0)) -> 0 | Z17: =IF($C17=0,0,IF(MOD(Z$3,$C17)=0,'Náklady - výnosy'!$J18,0)) -> 0 | AA17: =IF($C17=0,0,IF(MOD(AA$3,$C17)=0,'Náklady - výnosy'!$J18,0)) -> 0 | AB17: 0
B18: ='Náklady - výnosy'!B19 -> Přípojka | C18: ='Náklady - výnosy'!D19 -> 25 | D18: 0 | E18: =IF($C18=0,0,IF(MOD(E$3,$C18)=0,'Náklady - výnosy'!$J19,0)) -> 0 | F18: =IF($C18=0,0,IF(MOD(F$3,$C18)=0,'Náklady - výnosy'!$J19,0)) -> 0 | G18: =IF($C18=0,0,IF(MOD(G$3,$C18)=0,'Náklady - výnosy'!$J19,0)) -> 0 | H18: =IF($C18=0,0,IF(MOD(H$3,$C18)=0,'Náklady - výnosy'!$J19,0)) -> 0 | I18: =IF($C18=0,0,IF(MOD(I$3,$C18)=0,'Náklady - výnosy'!$J19,0)) -> 0 | J18: =IF($C18=0,0,IF(MOD(J$3,$C18)=0,'Náklady - výnosy'!$J19,0)) -> 0 | K18: =IF($C18=0,0,IF(MOD(K$3,$C18)=0,'Náklady - výnosy'!$J19,0)) -> 0 | L18: =IF($C18=0,0,IF(MOD(L$3,$C18)=0,'Náklady - výnosy'!$J19,0)) -> 0 | M18: =IF($C18=0,0,IF(MOD(M$3,$C18)=0,'Náklady - výnosy'!$J19,0)) -> 0 | N18: =IF($C18=0,0,IF(MOD(N$3,$C18)=0,'Náklady - výnosy'!$J19,0)) -> 0 | O18: =IF($C18=0,0,IF(MOD(O$3,$C18)=0,'Náklady - výnosy'!$J19,0)) -> 0 | P18: =IF($C18=0,0,IF(MOD(P$3,$C18)=0,'Náklady - výnosy'!$J19,0)) -> 0 | Q18: =IF($C18=0,0,IF(MOD(Q$3,$C18)=0,'Náklady - výnosy'!$J19,0)) -> 0 | R18: =IF($C18=0,0,IF(MOD(R$3,$C18)=0,'Náklady - výnosy'!$J19,0)) -> 0 | S18: =IF($C18=0,0,IF(MOD(S$3,$C18)=0,'Náklady - výnosy'!$J19,0)) -> 0 | T18: =IF($C18=0,0,IF(MOD(T$3,$C18)=0,'Náklady - výnosy'!$J19,0)) -> 0 | U18: =IF($C18=0,0,IF(MOD(U$3,$C18)=0,'Náklady - výnosy'!$J19,0)) -> 0 | V18: =IF($C18=0,0,IF(MOD(V$3,$C18)=0,'Náklady - výnosy'!$J19,0)) -> 0 | W18: =IF($C18=0,0,IF(MOD(W$3,$C18)=0,'Náklady - výnosy'!$J19,0)) -> 0 | X18: =IF($C18=0,0,IF(MOD(X$3,$C18)=0,'Náklady - výnosy'!$J19,0)) -> 0 | Y18: =IF($C18=0,0,IF(MOD(Y$3,$C18)=0,'Náklady - výnosy'!$J19,0)) -> 0 | Z18: =IF($C18=0,0,IF(MOD(Z$3,$C18)=0,'Náklady - výnosy'!$J19,0)) -> 0 | AA18: =IF($C18=0,0,IF(MOD(AA$3,$C18)=0,'Náklady - výnosy'!$J19,0)) -> 0 | AB18: 0
B19: ='Náklady - výnosy'!B20 -> Elektroměr | C19: ='Náklady - výnosy'!D20 -> 20 | D19: 0 | E19: =IF($C19=0,0,IF(MOD(E$3,$C19)=0,'Náklady - výnosy'!$J20,0)) -> 0 | F19: =IF($C19=0,0,IF(MOD(F$3,$C19)=0,'Náklady - výnosy'!$J20,0)) -> 0 | G19: =IF($C19=0,0,IF(MOD(G$3,$C19)=0,'Náklady - výnosy'!$J20,0)) -> 0 | H19: =IF($C19=0,0,IF(MOD(H$3,$C19)=0,'Náklady - výnosy'!$J20,0)) -> 0 | I19: =IF($C19=0,0,IF(MOD(I$3,$C19)=0,'Náklady - výnosy'!$J20,0)) -> 0 | J19: =IF($C19=0,0,IF(MOD(J$3,$C19)=0,'Náklady - výnosy'!$J20,0)) -> 0 | K19: =IF($C19=0,0,IF(MOD(K$3,$C19)=0,'Náklady - výnosy'!$J20,0)) -> 0 | L19: =IF($C19=0,0,IF(MOD(L$3,$C19)=0,'Náklady - výnosy'!$J20,0)) -> 0 | M19: =IF($C19=0,0,IF(MOD(M$3,$C19)=0,'Náklady - výnosy'!$J20,0)) -> 0 | N19: =IF($C19=0,0,IF(MOD(N$3,$C19)=0,'Náklady - výnosy'!$J20,0)) -> 0 | O19: =IF($C19=0,0,IF(MOD(O$3,$C19)=0,'Náklady - výnosy'!$J20,0)) -> 0 | P19: =IF($C19=0,0,IF(MOD(P$3,$C19)=0,'Náklady - výnosy'!$J20,0)) -> 0 | Q19: =IF($C19=0,0,IF(MOD(Q$3,$C19)=0,'Náklady - výnosy'!$J20,0)) -> 0 | R19: =IF($C19=0,0,IF(MOD(R$3,$C19)=0,'Náklady - výnosy'!$J20,0)) -> 0 | S19: =IF($C19=0,0,IF(MOD(S$3,$C19)=0,'Náklady - výnosy'!$J20,0)) -> 0 | T19: =IF($C19=0,0,IF(MOD(T$3,$C19)=0,'Náklady - výnosy'!$J20,0)) -> 0 | U19: =IF($C19=0,0,IF(MOD(U$3,$C19)=0,'Náklady - výnosy'!$J20,0)) -> 0 | V19: =IF($C19=0,0,IF(MOD(V$3,$C19)=0,'Náklady - výnosy'!$J20,0)) -> 0 | W19: =IF($C19=0,0,IF(MOD(W$3,$C19)=0,'Náklady - výnosy'!$J20,0)) -> 10000 | X19: =IF($C19=0,0,IF(MOD(X$3,$C19)=0,'Náklady - výnosy'!$J20,0)) -> 0 | Y19: =IF($C19=0,0,IF(MOD(Y$3,$C19)=0,'Náklady - výnosy'!$J20,0)) -> 0 | Z19: =IF($C19=0,0,IF(MOD(Z$3,$C19)=0,'Náklady - výnosy'!$J20,0)) -> 0 | AA19: =IF($C19=0,0,IF(MOD(AA$3,$C19)=0,'Náklady - výnosy'!$J20,0)) -> 0 | AB19: 0
B20: ='Náklady - výnosy'!B21 -> Ochranné prvky, zemnění | C20: ='Náklady - výnosy'!D21 -> 25 | D20: 0 | E20: =IF($C20=0,0,IF(MOD(E$3,$C20)=0,'Náklady - výnosy'!$J21,0)) -> 0 | F20: =IF($C20=0,0,IF(MOD(F$3,$C20)=0,'Náklady - výnosy'!$J21,0)) -> 0 | G20: =IF($C20=0,0,IF(MOD(G$3,$C20)=0,'Náklady - výnosy'!$J21,0)) -> 0 | H20: =IF($C20=0,0,IF(MOD(H$3,$C20)=0,'Náklady - výnosy'!$J21,0)) -> 0 | I20: =IF($C20=0,0,IF(MOD(I$3,$C20)=0,'Náklady - výnosy'!$J21,0)) -> 0 | J20: =IF($C20=0,0,IF(MOD(J$3,$C20)=0,'Náklady - výnosy'!$J21,0)) -> 0 | K20: =IF($C20=0,0,IF(MOD(K$3,$C20)=0,'Náklady - výnosy'!$J21,0)) -> 0 | L20: =IF($C20=0,0,IF(MOD(L$3,$C20)=0,'Náklady - výnosy'!$J21,0)) -> 0 | M20: =IF($C20=0,0,IF(MOD(M$3,$C20)=0,'Náklady - výnosy'!$J21,0)) -> 0 | N20: =IF($C20=0,0,IF(MOD(N$3,$C20)=0,'Náklady - výnosy'!$J21,0)) -> 0 | O20: =IF($C20=0,0,IF(MOD(O$3,$C20)=0,'Náklady - výnosy'!$J21,0)) -> 0 | P20: =IF($C20=0,0,IF(MOD(P$3,$C20)=0,'Náklady - výnosy'!$J21,0)) -> 0 | Q20: =IF($C20=0,0,IF(MOD(Q$3,$C20)=0,'Náklady - výnosy'!$J21,0)) -> 0 | R20: =IF($C20=0,0,IF(MOD(R$3,$C20)=0,'Náklady - výnosy'!$J21,0)) -> 0 | S20: =IF($C20=0,0,IF(MOD(S$3,$C20)=0,'Náklady - výnosy'!$J21,0)) -> 0 | T20: =IF($C20=0,0,IF(MOD(T$3,$C20)=0,'Náklady - výnosy'!$J21,0)) -> 0 | U20: =IF($C20=0,0,IF(MOD(U$3,$C20)=0,'Náklady - výnosy'!$J21,0)) -> 0 | V20: =IF($C20=0,0,IF(MOD(V$3,$C20)=0,'Náklady - výnosy'!$J21,0)) -> 0 | W20: =IF($C20=0,0,IF(MOD(W$3,$C20)=0,'Náklady - výnosy'!$J21,0)) -> 0 | X20: =IF($C20=0,0,IF(MOD(X$3,$C20)=0,'Náklady - výnosy'!$J21,0)) -> 0 | Y20: =IF($C20=0,0,IF(MOD(Y$3,$C20)=0,'Náklady - výnosy'!$J21,0)) -> 0 | Z20: =IF($C20=0,0,IF(MOD(Z$3,$C20)=0,'Náklady - výnosy'!$J21,0)) -> 0 | AA20: =IF($C20=0,0,IF(MOD(AA$3,$C20)=0,'Náklady - výnosy'!$J21,0)) -> 0 | AB20: 0
B21: ='Náklady - výnosy'!B22 -> PV Combiner Box | C21: ='Náklady - výnosy'!D22 -> 13 | D21: 0 | E21: =IF($C21=0,0,IF(MOD(E$3,$C21)=0,'Náklady - výnosy'!$J22,0)) -> 0 | F21: =IF($C21=0,0,IF(MOD(F$3,$C21)=0,'Náklady - výnosy'!$J22,0)) -> 0 | G21: =IF($C21=0,0,IF(MOD(G$3,$C21)=0,'Náklady - výnosy'!$J22,0)) -> 0 | H21: =IF($C21=0,0,IF(MOD(H$3,$C21)=0,'Náklady - výnosy'!$J22,0)) -> 0 | I21: =IF($C21=0,0,IF(MOD(I$3,$C21)=0,'Náklady - výnosy'!$J22,0)) -> 0 | J21: =IF($C21=0,0,IF(MOD(J$3,$C21)=0,'Náklady - výnosy'!$J22,0)) -> 0 | K21: =IF($C21=0,0,IF(MOD(K$3,$C21)=0,'Náklady - výnosy'!$J22,0)) -> 0 | L21: =IF($C21=0,0,IF(MOD(L$3,$C21)=0,'Náklady - výnosy'!$J22,0)) -> 0 | M21: =IF($C21=0,0,IF(MOD(M$3,$C21)=0,'Náklady - výnosy'!$J22,0)) -> 0 | N21: =IF($C21=0,0,IF(MOD(N$3,$C21)=0,'Náklady - výnosy'!$J22,0)) -> 0 | O21: =IF($C21=0,0,IF(MOD(O$3,$C21)=0,'Náklady - výnosy'!$J22,0)) -> 0 | P21: =IF($C21=0,0,IF(MOD(P$3,$C21)=0,'Náklady - výnosy'!$J22,0)) -> 48000 | Q21: =IF($C21=0,0,IF(MOD(Q$3,$C21)=0,'Náklady - výnosy'!$J22,0)) -> 0 | R21: =IF($C21=0,0,IF(MOD(R$3,$C21)=0,'Náklady - výnosy'!$J22,0)) -> 0 | S21: =IF($C21=0,0,IF(MOD(S$3,$C21)=0,'Náklady - výnosy'!$J22,0)) -> 0 | T21: =IF($C21=0,0,IF(MOD(T$3,$C21)=0,'Náklady - výnosy'!$J22,0)) -> 0 | U21: =IF($C21=0,0,IF(MOD(U$3,$C21)=0,'Náklady - výnosy'!$J22,0)) -> 0 | V21: =IF($C21=0,0,IF(MOD(V$3,$C21)=0,'Náklady - výnosy'!$J22,0)) -> 0 | W21: =IF($C21=0,0,IF(MOD(W$3,$C21)=0,'Náklady - výnosy'!$J22,0)) -> 0 | X21: =IF($C21=0,0,IF(MOD(X$3,$C21)=0,'Náklady - výnosy'!$J22,0)) -> 0 | Y21: =IF($C21=0,0,IF(MOD(Y$3,$C21)=0,'Náklady - výnosy'!$J22,0)) -> 0 | Z21: =IF($C21=0,0,IF(MOD(Z$3,$C21)=0,'Náklady - výnosy'!$J22,0)) -> 0 | AA21: =IF($C21=0,0,IF(MOD(AA$3,$C21)=0,'Náklady - výnosy'!$J22,0)) -> 0 | AB21: 0
B22: ='Náklady - výnosy'!B23 -> DC/DC Converter s MPPT | C22: ='Náklady - výnosy'!D23 -> 25 | D22: 0 | E22: =IF($C22=0,0,IF(MOD(E$3,$C22)=0,'Náklady - výnosy'!$J23,0)) -> 0 | F22: =IF($C22=0,0,IF(MOD(F$3,$C22)=0,'Náklady - výnosy'!$J23,0)) -> 0 | G22: =IF($C22=0,0,IF(MOD(G$3,$C22)=0,'Náklady - výnosy'!$J23,0)) -> 0 | H22: =IF($C22=0,0,IF(MOD(H$3,$C22)=0,'Náklady - výnosy'!$J23,0)) -> 0 | I22: =IF($C22=0,0,IF(MOD(I$3,$C22)=0,'Náklady - výnosy'!$J23,0)) -> 0 | J22: =IF($C22=0,0,IF(MOD(J$3,$C22)=0,'Náklady - výnosy'!$J23,0)) -> 0 | K22: =IF($C22=0,0,IF(MOD(K$3,$C22)=0,'Náklady - výnosy'!$J23,0)) -> 0 | L22: =IF($C22=0,0,IF(MOD(L$3,$C22)=0,'Náklady - výnosy'!$J23,0)) -> 0 | M22: =IF($C22=0,0,IF(MOD(M$3,$C22)=0,'Náklady - výnosy'!$J23,0)) -> 0 | N22: =IF($C22=0,0,IF(MOD(N$3,$C22)=0,'Náklady - výnosy'!$J23,0)) -> 0 | O22: =IF($C22=0,0,IF(MOD(O$3,$C22)=0,'Náklady - výnosy'!$J23,0)) -> 0 | P22: =IF($C22=0,0,IF(MOD(P$3,$C22)=0,'Náklady - výnosy'!$J23,0)) -> 0 | Q22: =IF($C22=0,0,IF(MOD(Q$3,$C22)=0,'Náklady - výnosy'!$J23,0)) -> 0 | R22: =IF($C22=0,0,IF(MOD(R$3,$C22)=0,'Náklady - výnosy'!$J23,0)) -> 0 | S22: =IF($C22=0,0,IF(MOD(S$3,$C22)=0,'Náklady - výnosy'!$J23,0)) -> 0 | T22: =IF($C22=0,0,IF(MOD(T$3,$C22)=0,'Náklady - výnosy'!$J23,0)) -> 0 | U22: =IF($C22=0,0,IF(MOD(U$3,$C22)=0,'Náklady - výnosy'!$J23,0)) -> 0 | V22: =IF($C22=0,0,IF(MOD(V$3,$C22)=0,'Náklady - výnosy'!$J23,0)) -> 0 | W22: =IF($C22=0,0,IF(MOD(W$3,$C22)=0,'Náklady - výnosy'!$J23,0)) -> 0 | X22: =IF($C22=0,0,IF(MOD(X$3,$C22)=0,'Náklady - výnosy'!$J23,0)) -> 0 | Y22: =IF($C22=0,0,IF(MOD(Y$3,$C22)=0,'Náklady - výnosy'!$J23,0)) -> 0 | Z22: =IF($C22=0,0,IF(MOD(Z$3,$C22)=0,'Náklady - výnosy'!$J23,0)) -> 0 | AA22: =IF($C22=0,0,IF(MOD(AA$3,$C22)=0,'Náklady - výnosy'!$J23,0)) -> 0 | AB22: 0
B23: ='Náklady - výnosy'!B24 -> 0 | C23: ='Náklady - výnosy'!D24 -> 0 | D23: 0 | E23: =IF($C23=0,0,IF(MOD(E$3,$C23)=0,'Náklady - výnosy'!$J24,0)) -> 0 | F23: =IF($C23=0,0,IF(MOD(F$3,$C23)=0,'Náklady - výnosy'!$J24,0)) -> 0 | G23: =IF($C23=0,0,IF(MOD(G$3,$C23)=0,'Náklady - výnosy'!$J24,0)) -> 0 | H23: =IF($C23=0,0,IF(MOD(H$3,$C23)=0,'Náklady - výnosy'!$J24,0)) -> 0 | I23: =IF($C23=0,0,IF(MOD(I$3,$C23)=0,'Náklady - výnosy'!$J24,0)) -> 0 | J23: =IF($C23=0,0,IF(MOD(J$3,$C23)=0,'Náklady - výnosy'!$J24,0)) -> 0 | K23: =IF($C23=0,0,IF(MOD(K$3,$C23)=0,'Náklady - výnosy'!$J24,0)) -> 0 | L23: =IF($C23=0,0,IF(MOD(L$3,$C23)=0,'Náklady - výnosy'!$J24,0)) -> 0 | M23: =IF($C23=0,0,IF(MOD(M$3,$C23)=0,'Náklady - výnosy'!$J24,0)) -> 0 | N23: =IF($C23=0,0,IF(MOD(N$3,$C23)=0,'Náklady - výnosy'!$J24,0)) -> 0 | O23: =IF($C23=0,0,IF(MOD(O$3,$C23)=0,'Náklady - výnosy'!$J24,0)) -> 0 | P23: =IF($C23=0,0,IF(MOD(P$3,$C23)=0,'Náklady - výnosy'!$J24,0)) -> 0 | Q23: =IF($C23=0,0,IF(MOD(Q$3,$C23)=0,'Náklady - výnosy'!$J24,0)) -> 0 | R23: =IF($C23=0,0,IF(MOD(R$3,$C23)=0,'Náklady - výnosy'!$J24,0)) -> 0 | S23: =IF($C23=0,0,IF(MOD(S$3,$C23)=0,'Náklady - výnosy'!$J24,0)) -> 0 | T23: =IF($C23=0,0,IF(MOD(T$3,$C23)=0,'Náklady - výnosy'!$J24,0)) -> 0 | U23: =IF($C23=0,0,IF(MOD(U$3,$C23)=0,'Náklady - výnosy'!$J24,0)) -> 0 | V23: =IF($C23=0,0,IF(MOD(V$3,$C23)=0,'Náklady - výnosy'!$J24,0)) -> 0 | W23: =IF($C23=0,0,IF(MOD(W$3,$C23)=0,'Náklady - výnosy'!$J24,0)) -> 0 | X23: =IF($C23=0,0,IF(MOD(X$3,$C23)=0,'Náklady - výnosy'!$J24,0)) -> 0 | Y23: =IF($C23=0,0,IF(MOD(Y$3,$C23)=0,'Náklady - výnosy'!$J24,0)) -> 0 | Z23: =IF($C23=0,0,IF(MOD(Z$3,$C23)=0,'Náklady - výnosy'!$J24,0)) -> 0 | AA23: =IF($C23=0,0,IF(MOD(AA$3,$C23)=0,'Náklady - výnosy'!$J24,0)) -> 0 | AB23: 0
B24: ='Náklady - výnosy'!B25 -> 0 | C24: ='Náklady - výnosy'!D25 -> 0 | D24: 0 | E24: =IF($C24=0,0,IF(MOD(E$3,$C24)=0,'Náklady - výnosy'!$J25,0)) -> 0 | F24: =IF($C24=0,0,IF(MOD(F$3,$C24)=0,'Náklady - výnosy'!$J25,0)) -> 0 | G24: =IF($C24=0,0,IF(MOD(G$3,$C24)=0,'Náklady - výnosy'!$J25,0)) -> 0 | H24: =IF($C24=0,0,IF(MOD(H$3,$C24)=0,'Náklady - výnosy'!$J25,0)) -> 0 | I24: =IF($C24=0,0,IF(MOD(I$3,$C24)=0,'Náklady - výnosy'!$J25,0)) -> 0 | J24: =IF($C24=0,0,IF(MOD(J$3,$C24)=0,'Náklady - výnosy'!$J25,0)) -> 0 | K24: =IF($C24=0,0,IF(MOD(K$3,$C24)=0,'Náklady - výnosy'!$J25,0)) -> 0 | L24: =IF($C24=0,0,IF(MOD(L$3,$C24)=0,'Náklady - výnosy'!$J25,0)) -> 0 | M24: =IF($C24=0,0,IF(MOD(M$3,$C24)=0,'Náklady - výnosy'!$J25,0)) -> 0 | N24: =IF($C24=0,0,IF(MOD(N$3,$C24)=0,'Náklady - výnosy'!$J25,0)) -> 0 | O24: =IF($C24=0,0,IF(MOD(O$3,$C24)=0,'Náklady - výnosy'!$J25,0)) -> 0 | P24: =IF($C24=0,0,IF(MOD(P$3,$C24)=0,'Náklady - výnosy'!$J25,0)) -> 0 | Q24: =IF($C24=0,0,IF(MOD(Q$3,$C24)=0,'Náklady - výnosy'!$J25,0)) -> 0 | R24: =IF($C24=0,0,IF(MOD(R$3,$C24)=0,'Náklady - výnosy'!$J25,0)) -> 0 | S24: =IF($C24=0,0,IF(MOD(S$3,$C24)=0,'Náklady - výnosy'!$J25,0)) -> 0 | T24: =IF($C24=0,0,IF(MOD(T$3,$C24)=0,'Náklady - výnosy'!$J25,0)) -> 0 | U24: =IF($C24=0,0,IF(MOD(U$3,$C24)=0,'Náklady - výnosy'!$J25,0)) -> 0 | V24: =IF($C24=0,0,IF(MOD(V$3,$C24)=0,'Náklady - výnosy'!$J25,0)) -> 0 | W24: =IF($C24=0,0,IF(MOD(W$3,$C24)=0,'Náklady - výnosy'!$J25,0)) -> 0 | X24: =IF($C24=0,0,IF(MOD(X$3,$C24)=0,'Náklady - výnosy'!$J25,0)) -> 0 | Y24: =IF($C24=0,0,IF(MOD(Y$3,$C24)=0,'Náklady - výnosy'!$J25,0)) -> 0 | Z24: =IF($C24=0,0,IF(MOD(Z$3,$C24)=0,'Náklady - výnosy'!$J25,0)) -> 0 | AA24: =IF($C24=0,0,IF(MOD(AA$3,$C24)=0,'Náklady - výnosy'!$J25,0)) -> 0 | AB24: 0
B25: ='Náklady - výnosy'!B26 -> 0 | C25: ='Náklady - výnosy'!D26 -> 0 | D25: 0 | E25: =IF($C25=0,0,IF(MOD(E$3,$C25)=0,'Náklady - výnosy'!$J26,0)) -> 0 | F25: =IF($C25=0,0,IF(MOD(F$3,$C25)=0,'Náklady - výnosy'!$J26,0)) -> 0 | G25: =IF($C25=0,0,IF(MOD(G$3,$C25)=0,'Náklady - výnosy'!$J26,0)) -> 0 | H25: =IF($C25=0,0,IF(MOD(H$3,$C25)=0,'Náklady - výnosy'!$J26,0)) -> 0 | I25: =IF($C25=0,0,IF(MOD(I$3,$C25)=0,'Náklady - výnosy'!$J26,0)) -> 0 | J25: =IF($C25=0,0,IF(MOD(J$3,$C25)=0,'Náklady - výnosy'!$J26,0)) -> 0 | K25: =IF($C25=0,0,IF(MOD(K$3,$C25)=0,'Náklady - výnosy'!$J26,0)) -> 0 | L25: =IF($C25=0,0,IF(MOD(L$3,$C25)=0,'Náklady - výnosy'!$J26,0)) -> 0 | M25: =IF($C25=0,0,IF(MOD(M$3,$C25)=0,'Náklady - výnosy'!$J26,0)) -> 0 | N25: =IF($C25=0,0,IF(MOD(N$3,$C25)=0,'Náklady - výnosy'!$J26,0)) -> 0 | O25: =IF($C25=0,0,IF(MOD(O$3,$C25)=0,'Náklady - výnosy'!$J26,0)) -> 0 | P25: =IF($C25=0,0,IF(MOD(P$3,$C25)=0,'Náklady - výnosy'!$J26,0)) -> 0 | Q25: =IF($C25=0,0,IF(MOD(Q$3,$C25)=0,'Náklady - výnosy'!$J26,0)) -> 0 | R25: =IF($C25=0,0,IF(MOD(R$3,$C25)=0,'Náklady - výnosy'!$J26,0)) -> 0 | S25: =IF($C25=0,0,IF(MOD(S$3,$C25)=0,'Náklady - výnosy'!$J26,0)) -> 0 | T25: =IF($C25=0,0,IF(MOD(T$3,$C25)=0,'Náklady - výnosy'!$J26,0)) -> 0 | U25: =IF($C25=0,0,IF(MOD(U$3,$C25)=0,'Náklady - výnosy'!$J26,0)) -> 0 | V25: =IF($C25=0,0,IF(MOD(V$3,$C25)=0,'Náklady - výnosy'!$J26,0)) -> 0 | W25: =IF($C25=0,0,IF(MOD(W$3,$C25)=0,'Náklady - výnosy'!$J26,0)) -> 0 | X25: =IF($C25=0,0,IF(MOD(X$3,$C25)=0,'Náklady - výnosy'!$J26,0)) -> 0 | Y25: =IF($C25=0,0,IF(MOD(Y$3,$C25)=0,'Náklady - výnosy'!$J26,0)) -> 0 | Z25: =IF($C25=0,0,IF(MOD(Z$3,$C25)=0,'Náklady - výnosy'!$J26,0)) -> 0 | AA25: =IF($C25=0,0,IF(MOD(AA$3,$C25)=0,'Náklady - výnosy'!$J26,0)) -> 0 | AB25: 0
B26: ='Náklady - výnosy'!B27 -> 0 | C26: ='Náklady - výnosy'!D27 -> 0 | D26: 0 | E26: =IF($C26=0,0,IF(MOD(E$3,$C26)=0,'Náklady - výnosy'!$J27,0)) -> 0 | F26: =IF($C26=0,0,IF(MOD(F$3,$C26)=0,'Náklady - výnosy'!$J27,0)) -> 0 | G26: =IF($C26=0,0,IF(MOD(G$3,$C26)=0,'Náklady - výnosy'!$J27,0)) -> 0 | H26: =IF($C26=0,0,IF(MOD(H$3,$C26)=0,'Náklady - výnosy'!$J27,0)) -> 0 | I26: =IF($C26=0,0,IF(MOD(I$3,$C26)=0,'Náklady - výnosy'!$J27,0)) -> 0 | J26: =IF($C26=0,0,IF(MOD(J$3,$C26)=0,'Náklady - výnosy'!$J27,0)) -> 0 | K26: =IF($C26=0,0,IF(MOD(K$3,$C26)=0,'Náklady - výnosy'!$J27,0)) -> 0 | L26: =IF($C26=0,0,IF(MOD(L$3,$C26)=0,'Náklady - výnosy'!$J27,0)) -> 0 | M26: =IF($C26=0,0,IF(MOD(M$3,$C26)=0,'Náklady - výnosy'!$J27,0)) -> 0 | N26: =IF($C26=0,0,IF(MOD(N$3,$C26)=0,'Náklady - výnosy'!$J27,0)) -> 0 | O26: =IF($C26=0,0,IF(MOD(O$3,$C26)=0,'Náklady - výnosy'!$J27,0)) -> 0 | P26: =IF($C26=0,0,IF(MOD(P$3,$C26)=0,'Náklady - výnosy'!$J27,0)) -> 0 | Q26: =IF($C26=0,0,IF(MOD(Q$3,$C26)=0,'Náklady - výnosy'!$J27,0)) -> 0 | R26: =IF($C26=0,0,IF(MOD(R$3,$C26)=0,'Náklady - výnosy'!$J27,0)) -> 0 | S26: =IF($C26=0,0,IF(MOD(S$3,$C26)=0,'Náklady - výnosy'!$J27,0)) -> 0 | T26: =IF($C26=0,0,IF(MOD(T$3,$C26)=0,'Náklady - výnosy'!$J27,0)) -> 0 | U26: =IF($C26=0,0,IF(MOD(U$3,$C26)=0,'Náklady - výnosy'!$J27,0)) -> 0 | V26: =IF($C26=0,0,IF(MOD(V$3,$C26)=0,'Náklady - výnosy'!$J27,0)) -> 0 | W26: =IF($C26=0,0,IF(MOD(W$3,$C26)=0,'Náklady - výnosy'!$J27,0)) -> 0 | X26: =IF($C26=0,0,IF(MOD(X$3,$C26)=0,'Náklady - výnosy'!$J27,0)) -> 0 | Y26: =IF($C26=0,0,IF(MOD(Y$3,$C26)=0,'Náklady - výnosy'!$J27,0)) -> 0 | Z26: =IF($C26=0,0,IF(MOD(Z$3,$C26)=0,'Náklady - výnosy'!$J27,0)) -> 0 | AA26: =IF($C26=0,0,IF(MOD(AA$3,$C26)=0,'Náklady - výnosy'!$J27,0)) -> 0 | AB26: 0
B27: ='Náklady - výnosy'!B28 -> 0 | C27: ='Náklady - výnosy'!D28 -> 0 | D27: 0 | E27: =IF($C27=0,0,IF(MOD(E$3,$C27)=0,'Náklady - výnosy'!$J28,0)) -> 0 | F27: =IF($C27=0,0,IF(MOD(F$3,$C27)=0,'Náklady - výnosy'!$J28,0)) -> 0 | G27: =IF($C27=0,0,IF(MOD(G$3,$C27)=0,'Náklady - výnosy'!$J28,0)) -> 0 | H27: =IF($C27=0,0,IF(MOD(H$3,$C27)=0,'Náklady - výnosy'!$J28,0)) -> 0 | I27: =IF($C27=0,0,IF(MOD(I$3,$C27)=0,'Náklady - výnosy'!$J28,0)) -> 0 | J27: =IF($C27=0,0,IF(MOD(J$3,$C27)=0,'Náklady - výnosy'!$J28,0)) -> 0 | K27: =IF($C27=0,0,IF(MOD(K$3,$C27)=0,'Náklady - výnosy'!$J28,0)) -> 0 | L27: =IF($C27=0,0,IF(MOD(L$3,$C27)=0,'Náklady - výnosy'!$J28,0)) -> 0 | M27: =IF($C27=0,0,IF(MOD(M$3,$C27)=0,'Náklady - výnosy'!$J28,0)) -> 0 | N27: =IF($C27=0,0,IF(MOD(N$3,$C27)=0,'Náklady - výnosy'!$J28,0)) -> 0 | O27: =IF($C27=0,0,IF(MOD(O$3,$C27)=0,'Náklady - výnosy'!$J28,0)) -> 0 | P27: =IF($C27=0,0,IF(MOD(P$3,$C27)=0,'Náklady - výnosy'!$J28,0)) -> 0 | Q27: =IF($C27=0,0,IF(MOD(Q$3,$C27)=0,'Náklady - výnosy'!$J28,0)) -> 0 | R27: =IF($C27=0,0,IF(MOD(R$3,$C27)=0,'Náklady - výnosy'!$J28,0)) -> 0 | S27: =IF($C27=0,0,IF(MOD(S$3,$C27)=0,'Náklady - výnosy'!$J28,0)) -> 0 | T27: =IF($C27=0,0,IF(MOD(T$3,$C27)=0,'Náklady - výnosy'!$J28,0)) -> 0 | U27: =IF($C27=0,0,IF(MOD(U$3,$C27)=0,'Náklady - výnosy'!$J28,0)) -> 0 | V27: =IF($C27=0,0,IF(MOD(V$3,$C27)=0,'Náklady - výnosy'!$J28,0)) -> 0 | W27: =IF($C27=0,0,IF(MOD(W$3,$C27)=0,'Náklady - výnosy'!$J28,0)) -> 0 | X27: =IF($C27=0,0,IF(MOD(X$3,$C27)=0,'Náklady - výnosy'!$J28,0)) -> 0 | Y27: =IF($C27=0,0,IF(MOD(Y$3,$C27)=0,'Náklady - výnosy'!$J28,0)) -> 0 | Z27: =IF($C27=0,0,IF(MOD(Z$3,$C27)=0,'Náklady - výnosy'!$J28,0)) -> 0 | AA27: =IF($C27=0,0,IF(MOD(AA$3,$C27)=0,'Náklady - výnosy'!$J28,0)) -> 0 | AB27: 0
B28: Celkem | D28: =SUM(D4:D27) -> 0 | E28: =SUM(E4:E27) -> 0 | F28: 0 | G28: 0 | H28: 0 | I28: 0 | J28: 0 | K28: 0 | L28: 0 | M28: 110000 | N28: 0 | O28: 0 | P28: 48000 | Q28: 0 | R28: 1220000 | S28: 0 | T28: 0 | U28: 0 | V28: 0 | W28: 200000 | X28: 0 | Y28: 0 | Z28: 0 | AA28: 0 | AB28: 0

Sheet Výpočet NPV
D5: Rok
D6: 0 | E6: 1 | F6: 2 | G6: 3 | H6: 4 | I6: 5 | J6: 6 | K6: 7 | L6: 8 | M6: 9 | N6: 10 | O6: 11 | P6: 12 | Q6: 13 | R6: 14 | S6: 15 | T6: 16 | U6: 17 | V6: 18 | W6: 19 | X6: 20 | Y6: 21 | Z6: 22 | AA6: 23 | AB6: 24 | AC6: 25
B7: Náklady | C7: Investiční | D7: ='Náklady - výnosy'!J29 -> 45653000 | E7: 0 | F7: 0 | G7: 0 | H7: 0 | I7: 0 | J7: 0 | K7: 0 | L7: 0 | M7: 0 | N7: 0 | O7: 0 | P7: 0 | Q7: 0 | R7: 0 | S7: 0 | T7: 0 | U7: 0 | V7: 0 | W7: 0 | X7: 0 | Y7: 0 | Z7: 0 | AA7: 0 | AB7: 0 | AC7: 0
C8: Osobní | D8: 0 | E8: ='Náklady - výnosy'!J52 -> 0 | F8: =IF('Náklady - výnosy'!$X$4='Ověření dat'!$B$2,'Náklady - výnosy'!$J$52*(1+'Náklady - výnosy'!$Y$4)^('Výpočet NPV'!F6-1),'Náklady - výnosy'!$J$52) -> 0 | G8: =IF('Náklady - výnosy'!$X$4='Ověření dat'!$B$2,'Náklady - výnosy'!$J$52*(1+'Náklady - výnosy'!$Y$4)^('Výpočet NPV'!G6-1),'Náklady - výnosy'!$J$52) -> 0 | H8: =IF('Náklady - výnosy'!$X$4='Ověření dat'!$B$2,'Náklady - výnosy'!$J$52*(1+'Náklady - výnosy'!$Y$4)^('Výpočet NPV'!H6-1),'Náklady - výnosy'!$J$52) -> 0 | I8: =IF('Náklady - výnosy'!$X$4='Ověření dat'!$B$2,'Náklady - výnosy'!$J$52*(1+'Náklady - výnosy'!$Y$4)^('Výpočet NPV'!I6-1),'Náklady - výnosy'!$J$52) -> 0 | J8: =IF('Náklady - výnosy'!$X$4='Ověření dat'!$B$2,'Náklady - výnosy'!$J$52*(1+'Náklady - výnosy'!$Y$4)^('Výpočet NPV'!J6-1),'Náklady - výnosy'!$J$52) -> 0 | K8: =IF('Náklady - výnosy'!$X$4='Ověření dat'!$B$2,'Náklady - výnosy'!$J$52*(1+'Náklady - výnosy'!$Y$4)^('Výpočet NPV'!K6-1),'Náklady - výnosy'!$J$52) -> 0 | L8: =IF('Náklady - výnosy'!$X$4='Ověření dat'!$B$2,'Náklady - výnosy'!$J$52*(1+'Náklady - výnosy'!$Y$4)^('Výpočet NPV'!L6-1),'Náklady - výnosy'!$J$52) -> 0 | M8: =IF('Náklady - výnosy'!$X$4='Ověření dat'!$B$2,'Náklady - výnosy'!$J$52*(1+'Náklady - výnosy'!$Y$4)^('Výpočet NPV'!M6-1),'Náklady - výnosy'!$J$52) -> 0 | N8: =IF('Náklady - výnosy'!$X$4='Ověření dat'!$B$2,'Náklady - výnosy'!$J$52*(1+'Náklady - výnosy'!$Y$4)^('Výpočet NPV'!N6-1),'Náklady - výnosy'!$J$52) -> 0 | O8: =IF('Náklady - výnosy'!$X$4='Ověření dat'!$B$2,'Náklady - výnosy'!$J$52*(1+'Náklady - výnosy'!$Y$4)^('Výpočet NPV'!O6-1),'Náklady - výnosy'!$J$52) -> 0 | P8: =IF('Náklady - výnosy'!$X$4='Ověření dat'!$B$2,'Náklady - výnosy'!$J$52*(1+'Náklady - výnosy'!$Y$4)^('Výpočet NPV'!P6-1),'Náklady - výnosy'!$J$52) -> 0 | Q8: =IF('Náklady - výnosy'!$X$4='Ověření dat'!$B$2,'Náklady - výnosy'!$J$52*(1+'Náklady - výnosy'!$Y$4)^('Výpočet NPV'!Q6-1),'Náklady - výnosy'!$J$52) -> 0 | R8: =IF('Náklady - výnosy'!$X$4='Ověření dat'!$B$2,'Náklady - výnosy'!$J$52*(1+'Náklady - výnosy'!$Y$4)^('Výpočet NPV'!R6-1),'Náklady - výnosy'!$J$52) -> 0 | S8: =IF('Náklady - výnosy'!$X$4='Ověření dat'!$B$2,'Náklady - výnosy'!$J$52*(1+'Náklady - výnosy'!$Y$4)^('Výpočet NPV'!S6-1),'Náklady - výnosy'!$J$52) -> 0 | T8: =IF('Náklady - výnosy'!$X$4='Ověření dat'!$B$2,'Náklady - výnosy'!$J$52*(1+'Náklady - výnosy'!$Y$4)^('Výpočet NPV'!T6-1),'Náklady - výnosy'!$J$52) -> 0 | U8: =IF('Náklady - výnosy'!$X$4='Ověření dat'!$B$2,'Náklady - výnosy'!$J$52*(1+'Náklady - výnosy'!$Y$4)^('Výpočet NPV'!U6-1),'Náklady - výnosy'!$J$52) -> 0 | V8: =IF('Náklady - výnosy'!$X$4='Ověření dat'!$B$2,'Náklady - výnosy'!$J$52*(1+'Náklady - výnosy'!$Y$4)^('Výpočet NPV'!V6-1),'Náklady - výnosy'!$J$52) -> 0 | W8: =IF('Náklady - výnosy'!$X$4='Ověření dat'!$B$2,'Náklady - výnosy'!$J$52*(1+'Náklady - výnosy'!$Y$4)^('Výpočet NPV'!W6-1),'Náklady - výnosy'!$J$52) -> 0 | X8: =IF('Náklady - výnosy'!$X$4='Ověření dat'!$B$2,'Náklady - výnosy'!$J$52*(1+'Náklady - výnosy'!$Y$4)^('Výpočet NPV'!X6-1),'Náklady - výnosy'!$J$52) -> 0 | Y8: =IF('Náklady - výnosy'!$X$4='Ověření dat'!$B$2,'Náklady - výnosy'!$J$52*(1+'Náklady - výnosy'!$Y$4)^('Výpočet NPV'!Y6-1),'Náklady - výnosy'!$J$52) -> 0 | Z8: =IF('Náklady - výnosy'!$X$4='Ověření dat'!$B$2,'Náklady - výnosy'!$J$52*(1+'Náklady - výnosy'!$Y$4)^('Výpočet NPV'!Z6-1),'Náklady - výnosy'!$J$52) -> 0 | AA8: =IF('Náklady - výnosy'!$X$4='Ověření dat'!$B$2,'Náklady - výnosy'!$J$52*(1+'Náklady - výnosy'!$Y$4)^('Výpočet NPV'!AA6-1),'Náklady - výnosy'!$J$52) -> 0 | AB8: =IF('Náklady - výnosy'!$X$4='Ověření dat'!$B$2,'Náklady - výnosy'!$J$52*(1+'Náklady - výnosy'!$Y$4)^('Výpočet NPV'!AB6-1),'Náklady - výnosy'!$J$52) -> 0 | AC8: =IF('Náklady - výnosy'!$X$4='Ověření dat'!$B$2,'Náklady - výnosy'!$J$52*(1+'Náklady - výnosy'!$Y$4)^('Výpočet NPV'!AC6-1),'Náklady - výnosy'!$J$52) -> 0
C9: Údržba + opravy | D9: 0 | E9: ='Náklady - výnosy'!J53 -> 60000 | F9: =IF('Náklady - výnosy'!$X$5='Ověření dat'!$B$2,'Náklady - výnosy'!$J$53*(1+'Náklady - výnosy'!$Y$5)^('Výpočet NPV'!F$6-1),'Náklady - výnosy'!$J$53) -> 60000 | G9: =IF('Náklady - výnosy'!$X$5='Ověření dat'!$B$2,'Náklady - výnosy'!$J$53*(1+'Náklady - výnosy'!$Y$5)^('Výpočet NPV'!G$6-1),'Náklady - výnosy'!$J$53) -> 60000 | H9: =IF('Náklady - výnosy'!$X$5='Ověření dat'!$B$2,'Náklady - výnosy'!$J$53*(1+'Náklady - výnosy'!$Y$5)^('Výpočet NPV'!H$6-1),'Náklady - výnosy'!$J$53) -> 60000 | I9: =IF('Náklady - výnosy'!$X$5='Ověření dat'!$B$2,'Náklady - výnosy'!$J$53*(1+'Náklady - výnosy'!$Y$5)^('Výpočet NPV'!I$6-1),'Náklady - výnosy'!$J$53) -> 60000 | J9: =IF('Náklady - výnosy'!$X$5='Ověření dat'!$B$2,'Náklady - výnosy'!$J$53*(1+'Náklady - výnosy'!$Y$5)^('Výpočet NPV'!J$6-1),'Náklady - výnosy'!$J$53) -> 60000 | K9: =IF('Náklady - výnosy'!$X$5='Ověření dat'!$B$2,'Náklady - výnosy'!$J$53*(1+'Náklady - výnosy'!$Y$5)^('Výpočet NPV'!K$6-1),'Náklady - výnosy'!$J$53) -> 60000 | L9: =IF('Náklady - výnosy'!$X$5='Ověření dat'!$B$2,'Náklady - výnosy'!$J$53*(1+'Náklady - výnosy'!$Y$5)^('Výpočet NPV'!L$6-1),'Náklady - výnosy'!$J$53) -> 60000 | M9: =IF('Náklady - výnosy'!$X$5='Ověření dat'!$B$2,'Náklady - výnosy'!$J$53*(1+'Náklady - výnosy'!$Y$5)^('Výpočet NPV'!M$6-1),'Náklady - výnosy'!$J$53) -> 60000 | N9: =IF('Náklady - výnosy'!$X$5='Ověření dat'!$B$2,'Náklady - výnosy'!$J$53*(1+'Náklady - výnosy'!$Y$5)^('Výpočet NPV'!N$6-1),'Náklady - výnosy'!$J$53) -> 60000 | O9: =IF('Náklady - výnosy'!$X$5='Ověření dat'!$B$2,'Náklady - výnosy'!$J$53*(1+'Náklady - výnosy'!$Y$5)^('Výpočet NPV'!O$6-1),'Náklady - výnosy'!$J$53) -> 60000 | P9: =IF('Náklady - výnosy'!$X$5='Ověření dat'!$B$2,'Náklady - výnosy'!$J$53*(1+'Náklady - výnosy'!$Y$5)^('Výpočet NPV'!P$6-1),'Náklady - výnosy'!$J$53) -> 60000 | Q9: =IF('Náklady - výnosy'!$X$5='Ověření dat'!$B$2,'Náklady - výnosy'!$J$53*(1+'Náklady - výnosy'!$Y$5)^('Výpočet NPV'!Q$6-1),'Náklady - výnosy'!$J$53) -> 60000 | R9: =IF('Náklady - výnosy'!$X$5='Ověření dat'!$B$2,'Náklady - výnosy'!$J$53*(1+'Náklady - výnosy'!$Y$5)^('Výpočet NPV'!R$6-1),'Náklady - výnosy'!$J$53) -> 60000 | S9: =IF('Náklady - výnosy'!$X$5='Ověření dat'!$B$2,'Náklady - výnosy'!$J$53*(1+'Náklady - výnosy'!$Y$5)^('Výpočet NPV'!S$6-1),'Náklady - výnosy'!$J$53) -> 60000 | T9: =IF('Náklady - výnosy'!$X$5='Ověření dat'!$B$2,'Náklady - výnosy'!$J$53*(1+'Náklady - výnosy'!$Y$5)^('Výpočet NPV'!T$6-1),'Náklady - výnosy'!$J$53) -> 60000 | U9: =IF('Náklady - výnosy'!$X$5='Ověření dat'!$B$2,'Náklady - výnosy'!$J$53*(1+'Náklady - výnosy'!$Y$5)^('Výpočet NPV'!U$6-1),'Náklady - výnosy'!$J$53) -> 60000 | V9: =IF('Náklady - výnosy'!$X$5='Ověření dat'!$B$2,'Náklady - výnosy'!$J$53*(1+'Náklady - výnosy'!$Y$5)^('Výpočet NPV'!V$6-1),'Náklady - výnosy'!$J$53) -> 60000 | W9: =IF('Náklady - výnosy'!$X$5='Ověření dat'!$B$2,'Náklady - výnosy'!$J$53*(1+'Náklady - výnosy'!$Y$5)^('Výpočet NPV'!W$6-1),'Náklady - výnosy'!$J$53) -> 60000 | X9: =IF('Náklady - výnosy'!$X$5='Ověření dat'!$B$2,'Náklady - výnosy'!$J$53*(1+'Náklady - výnosy'!$Y$5)^('Výpočet NPV'!X$6-1),'Náklady - výnosy'!$J$53) -> 60000 | Y9: =IF('Náklady - výnosy'!$X$5='Ověření dat'!$B$2,'Náklady - výnosy'!$J$53*(1+'Náklady - výnosy'!$Y$5)^('Výpočet NPV'!Y$6-1),'Náklady - výnosy'!$J$53) -> 60000 | Z9: =IF('Náklady - výnosy'!$X$5='Ověření dat'!$B$2,'Náklady - výnosy'!$J$53*(1+'Náklady - výnosy'!$Y$5)^('Výpočet NPV'!Z$6-1),'Náklady - výnosy'!$J$53) -> 60000 | AA9: =IF('Náklady - výnosy'!$X$5='Ověření dat'!$B$2,'Náklady - výnosy'!$J$53*(1+'Náklady - výnosy'!$Y$5)^('Výpočet NPV'!AA$6-1),'Náklady - výnosy'!$J$53) -> 60000 | AB9: =IF('Náklady - výnosy'!$X$5='Ověření dat'!$B$2,'Náklady - výnosy'!$J$53*(1+'Náklady - výnosy'!$Y$5)^('Výpočet NPV'!AB$6-1),'Náklady - výnosy'!$J$53) -> 60000 | AC9: =IF('Náklady - výnosy'!$X$5='Ověření dat'!$B$2,'Náklady - výnosy'!$J$53*(1+'Náklady - výnosy'!$Y$5)^('Výpočet NPV'!AC$6-1),'Náklady - výnosy'!$J$53) -> 60000
C10: Náhradní díly | D10: 0 | E10: ='Náklady - výnosy'!J54 -> 0 | F10: =IF('Náklady - výnosy'!$X$6='Ověření dat'!$B$2,('Náklady - výnosy'!$J$54+'Provozní - náhradní díly'!E$28)*(1+'Náklady - výnosy'!$Y$6)^('Výpočet NPV'!F$6-1),'Náklady - výnosy'!$J$54+'Provozní - náhradní díly'!E$28) -> 0 | G10: =IF('Náklady - výnosy'!$X$6='Ověření dat'!$B$2,('Náklady - výnosy'!$J$54+'Provozní - náhradní díly'!F$28)*(1+'Náklady - výnosy'!$Y$6)^('Výpočet NPV'!G$6-1),'Náklady - výnosy'!$J$54+'Provozní - náhradní díly'!F$28) -> 0 | H10: =IF('Náklady - výnosy'!$X$6='Ověření dat'!$B$2,('Náklady - výnosy'!$J$54+'Provozní - náhradní díly'!G$28)*(1+'Náklady - výnosy'!$Y$6)^('Výpočet NPV'!H$6-1),'Náklady - výnosy'!$J$54+'Provozní - náhradní díly'!G$28) -> 0 | I10: =IF('Náklady - výnosy'!$X$6='Ověření dat'!$B$2,('Náklady - výnosy'!$J$54+'Provozní - náhradní díly'!H$28)*(1+'Náklady - výnosy'!$Y$6)^('Výpočet NPV'!I$6-1),'Náklady - výnosy'!$J$54+'Provozní - náhradní díly'!H$28) -> 0 | J10: =IF('Náklady - výnosy'!$X$6='Ověření dat'!$B$2,('Náklady - výnosy'!$J$54+'Provozní - náhradní díly'!I$28)*(1+'Náklady - výnosy'!$Y$6)^('Výpočet NPV'!J$6-1),'Náklady - výnosy'!$J$54+'Provozní - náhradní díly'!I$28) -> 0 | K10: =IF('Náklady - výnosy'!$X$6='Ověření dat'!$B$2,('Náklady - výnosy'!$J$54+'Provozní - náhradní díly'!J$28)*(1+'Náklady - výnosy'!$Y$6)^('Výpočet NPV'!K$6-1),'Náklady - výnosy'!$J$54+'Provozní - náhradní díly'!J$28) -> 0 | L10: =IF('Náklady - výnosy'!$X$6='Ověření dat'!$B$2,('Náklady - výnosy'!$J$54+'Provozní - náhradní díly'!K$28)*(1+'Náklady - výnosy'!$Y$6)^('Výpočet NPV'!L$6-1),'Náklady - výnosy'!$J$54+'Provozní - náhradní díly'!K$28) -> 0 | M10: =IF('Náklady - výnosy'!$X$6='Ověření dat'!$B$2,('Náklady - výnosy'!$J$54+'Provozní - náhradní díly'!L$28)*(1+'Náklady - výnosy'!$Y$6)^('Výpočet NPV'!M$6-1),'Náklady - výnosy'!$J$54+'Provozní - náhradní díly'!L$28) -> 0 | N10: =IF('Náklady - výnosy'!$X$6='Ověření dat'!$B$2,('Náklady - výnosy'!$J$54+'Provozní - náhradní díly'!M$28)*(1+'Náklady - výnosy'!$Y$6)^('Výpočet NPV'!N$6-1),'Náklady - výnosy'!$J$54+'Provozní - náhradní díly'!M$28) -> 120305.38 | O10: =IF('Náklady - výnosy'!$X$6='Ověření dat'!$B$2,('Náklady - výnosy'!$J$54+'Provozní - náhradní díly'!N$28)*(1+'Náklady - výnosy'!$Y$6)^('Výpočet NPV'!O$6-1),'Náklady - výnosy'!$J$54+'Provozní - náhradní díly'!N$28) -> 0 | P10: =IF('Náklady - výnosy'!$X$6='Ověření dat'!$B$2,('Náklady - výnosy'!$J$54+'Provozní - náhradní díly'!O$28)*(1+'Náklady - výnosy'!$Y$6)^('Výpočet NPV'!P$6-1),'Náklady - výnosy'!$J$54+'Provozní - náhradní díly'!O$28) -> 0 | Q10: =IF('Náklady - výnosy'!$X$6='Ověření dat'!$B$2,('Náklady - výnosy'!$J$54+'Provozní - náhradní díly'!P$28)*(1+'Náklady - výnosy'!$Y$6)^('Výpočet NPV'!Q$6-1),'Náklady - výnosy'!$J$54+'Provozní - náhradní díly'!P$28) -> 54087.60145 | R10: =IF('Náklady - výnosy'!$X$6='Ověření dat'!$B$2,('Náklady - výnosy'!$J$54+'Provozní - náhradní díly'!Q$28)*(1+'Náklady - výnosy'!$Y$6)^('Výpočet NPV'!R$6-1),'Náklady - výnosy'!$J$54+'Provozní - náhradní díly'!Q$28) -> 0 | S10: =IF('Náklady - výnosy'!$X$6='Ověření dat'!$B$2,('Náklady - výnosy'!$J$54+'Provozní - náhradní díly'!R$28)*(1+'Náklady - výnosy'!$Y$6)^('Výpočet NPV'!S$6-1),'Náklady - výnosy'!$J$54+'Provozní - náhradní díly'!R$28) -> 1402358.54 | T10: =IF('Náklady - výnosy'!$X$6='Ověření dat'!$B$2,('Náklady - výnosy'!$J$54+'Provozní - náhradní díly'!S$28)*(1+'Náklady - výnosy'!$Y$6)^('Výpočet NPV'!T$6-1),'Náklady - výnosy'!$J$54+'Provozní - náhradní díly'!S$28) -> 0 | U10: =IF('Náklady - výnosy'!$X$6='Ověření dat'!$B$2,('Náklady - výnosy'!$J$54+'Provozní - náhradní díly'!T$28)*(1+'Náklady - výnosy'!$Y$6)^('Výpočet NPV'!U$6-1),'Náklady - výnosy'!$J$54+'Provozní - náhradní díly'!T$28) -> 0 | V10: =IF('Náklady - výnosy'!$X$6='Ověření dat'!$B$2,('Náklady - výnosy'!$J$54+'Provozní - náhradní díly'!U$28)*(1+'Náklady - výnosy'!$Y$6)^('Výpočet NPV'!V$6-1),'Náklady - výnosy'!$J$54+'Provozní - náhradní díly'!U$28) -> 0 | W10: =IF('Náklady - výnosy'!$X$6='Ověření dat'!$B$2,('Náklady - výnosy'!$J$54+'Provozní - náhradní díly'!V$28)*(1+'Náklady - výnosy'!$Y$6)^('Výpočet NPV'!W$6-1),'Náklady - výnosy'!$J$54+'Provozní - náhradní díly'!V$28) -> 0 | X10: =IF('Náklady - výnosy'!$X$6='Ověření dat'!$B$2,('Náklady - výnosy'!$J$54+'Provozní - náhradní díly'!W$28)*(1+'Náklady - výnosy'!$Y$6)^('Výpočet NPV'!X$6-1),'Náklady - výnosy'!$J$54+'Provozní - náhradní díly'!W$28) -> 241621.7901 | Y10: =IF('Náklady - výnosy'!$X$6='Ověření dat'!$B$2,('Náklady - výnosy'!$J$54+'Provozní - náhradní díly'!X$28)*(1+'Náklady - výnosy'!$Y$6)^('Výpočet NPV'!Y$6-1),'Náklady - výnosy'!$J$54+'Provozní - náhradní díly'!X$28) -> 0 | Z10: =IF('Náklady - výnosy'!$X$6='Ověření dat'!$B$2,('Náklady - výnosy'!$J$54+'Provozní - náhradní díly'!Y$28)*(1+'Náklady - výnosy'!$Y$6)^('Výpočet NPV'!Z$6-1),'Náklady - výnosy'!$J$54+'Provozní - náhradní díly'!Y$28) -> 0 | AA10: =IF('Náklady - výnosy'!$X$6='Ověření dat'!$B$2,('Náklady - výnosy'!$J$54+'Provozní - náhradní díly'!Z$28)*(1+'Náklady - výnosy'!$Y$6)^('Výpočet NPV'!AA$6-1),'Náklady - výnosy'!$J$54+'Provozní - náhradní díly'!Z$28) -> 0 | AB10: =IF('Náklady - výnosy'!$X$6='Ověření dat'!$B$2,('Náklady - výnosy'!$J$54+'Provozní - náhradní díly'!AA$28)*(1+'Náklady - výnosy'!$Y$6)^('Výpočet NPV'!AB$6-1),'Náklady - výnosy'!$J$54+'Provozní - náhradní díly'!AA$28) -> 0 | AC10: =IF('Náklady - výnosy'!$X$6='Ověření dat'!$B$2,('Náklady - výnosy'!$J$54+'Provozní - náhradní díly'!AB$28)*(1+'Náklady - výnosy'!$Y$6)^('Výpočet NPV'!AC$6-1),'Náklady - výnosy'!$J$54+'Provozní - náhradní díly'!AB$28) -> 0
C11: Jiné | D11: 0 | E11: ='Náklady - výnosy'!J55 -> 106000 | F11: =IF('Náklady - výnosy'!$X$7='Ověření dat'!$B$2,'Náklady - výnosy'!$J$55*(1+'Náklady - výnosy'!$Y$7)^('Výpočet NPV'!F$6-1),'Náklady - výnosy'!$J$55) -> 106000 | G11: =IF('Náklady - výnosy'!$X$7='Ověření dat'!$B$2,'Náklady - výnosy'!$J$55*(1+'Náklady - výnosy'!$Y$7)^('Výpočet NPV'!G$6-1),'Náklady - výnosy'!$J$55) -> 106000 | H11: =IF('Náklady - výnosy'!$X$7='Ověření dat'!$B$2,'Náklady - výnosy'!$J$55*(1+'Náklady - výnosy'!$Y$7)^('Výpočet NPV'!H$6-1),'Náklady - výnosy'!$J$55) -> 106000 | I11: =IF('Náklady - výnosy'!$X$7='Ověření dat'!$B$2,'Náklady - výnosy'!$J$55*(1+'Náklady - výnosy'!$Y$7)^('Výpočet NPV'!I$6-1),'Náklady - výnosy'!$J$55) -> 106000 | J11: =IF('Náklady - výnosy'!$X$7='Ověření dat'!$B$2,'Náklady - výnosy'!$J$55*(1+'Náklady - výnosy'!$Y$7)^('Výpočet NPV'!J$6-1),'Náklady - výnosy'!$J$55) -> 106000 | K11: =IF('Náklady - výnosy'!$X$7='Ověření dat'!$B$2,'Náklady - výnosy'!$J$55*(1+'Náklady - výnosy'!$Y$7)^('Výpočet NPV'!K$6-1),'Náklady - výnosy'!$J$55) -> 106000 | L11: =IF('Náklady - výnosy'!$X$7='Ověření dat'!$B$2,'Náklady - výnosy'!$J$55*(1+'Náklady - výnosy'!$Y$7)^('Výpočet NPV'!L$6-1),'Náklady - výnosy'!$J$55) -> 106000 | M11: =IF('Náklady - výnosy'!$X$7='Ověření dat'!$B$2,'Náklady - výnosy'!$J$55*(1+'Náklady - výnosy'!$Y$7)^('Výpočet NPV'!M$6-1),'Náklady - výnosy'!$J$55) -> 106000 | N11: =IF('Náklady - výnosy'!$X$7='Ověření dat'!$B$2,'Náklady - výnosy'!$J$55*(1+'Náklady - výnosy'!$Y$7)^('Výpočet NPV'!N$6-1),'Náklady - výnosy'!$J$55) -> 106000 | O11: =IF('Náklady - výnosy'!$X$7='Ověření dat'!$B$2,'Náklady - výnosy'!$J$55*(1+'Náklady - výnosy'!$Y$7)^('Výpočet NPV'!O$6-1),'Náklady - výnosy'!$J$55) -> 106000 | P11: =IF('Náklady - výnosy'!$X$7='Ověření dat'!$B$2,'Náklady - výnosy'!$J$55*(1+'Náklady - výnosy'!$Y$7)^('Výpočet NPV'!P$6-1),'Náklady - výnosy'!$J$55) -> 106000 | Q11: =IF('Náklady - výnosy'!$X$7='Ověření dat'!$B$2,'Náklady - výnosy'!$J$55*(1+'Náklady - výnosy'!$Y$7)^('Výpočet NPV'!Q$6-1),'Náklady - výnosy'!$J$55) -> 106000 | R11: =IF('Náklady - výnosy'!$X$7='Ověření dat'!$B$2,'Náklady - výnosy'!$J$55*(1+'Náklady - výnosy'!$Y$7)^('Výpočet NPV'!R$6-1),'Náklady - výnosy'!$J$55) -> 106000 | S11: =IF('Náklady - výnosy'!$X$7='Ověření dat'!$B$2,'Náklady - výnosy'!$J$55*(1+'Náklady - výnosy'!$Y$7)^('Výpočet NPV'!S$6-1),'Náklady - výnosy'!$J$55) -> 106000 | T11: =IF('Náklady - výnosy'!$X$7='Ověření dat'!$B$2,'Náklady - výnosy'!$J$55*(1+'Náklady - výnosy'!$Y$7)^('Výpočet NPV'!T$6-1),'Náklady - výnosy'!$J$55) -> 106000 | U11: =IF('Náklady - výnosy'!$X$7='Ověření dat'!$B$2,'Náklady - výnosy'!$J$55*(1+'Náklady - výnosy'!$Y$7)^('Výpočet NPV'!U$6-1),'Náklady - výnosy'!$J$55) -> 106000 | V11: =IF('Náklady - výnosy'!$X$7='Ověření dat'!$B$2,'Náklady - výnosy'!$J$55*(1+'Náklady - výnosy'!$Y$7)^('Výpočet NPV'!V$6-1),'Náklady - výnosy'!$J$55) -> 106000 | W11: =IF('Náklady - výnosy'!$X$7='Ověření dat'!$B$2,'Náklady - výnosy'!$J$55*(1+'Náklady - výnosy'!$Y$7)^('Výpočet NPV'!W$6-1),'Náklady - výnosy'!$J$55) -> 106000 | X11: =IF('Náklady - výnosy'!$X$7='Ověření dat'!$B$2,'Náklady - výnosy'!$J$55*(1+'Náklady - výnosy'!$Y$7)^('Výpočet NPV'!X$6-1),'Náklady - výnosy'!$J$55) -> 106000 | Y11: =IF('Náklady - výnosy'!$X$7='Ověření dat'!$B$2,'Náklady - výnosy'!$J$55*(1+'Náklady - výnosy'!$Y$7)^('Výpočet NPV'!Y$6-1),'Náklady - výnosy'!$J$55) -> 106000 | Z11: =IF('Náklady - výnosy'!$X$7='Ověření dat'!$B$2,'Náklady - výnosy'!$J$55*(1+'Náklady - výnosy'!$Y$7)^('Výpočet NPV'!Z$6-1),'Náklady - výnosy'!$J$55) -> 106000 | AA11: =IF('Náklady - výnosy'!$X$7='Ověření dat'!$B$2,'Náklady - výnosy'!$J$55*(1+'Náklady - výnosy'!$Y$7)^('Výpočet NPV'!AA$6-1),'Náklady - výnosy'!$J$55) -> 106000 | AB11: =IF('Náklady - výnosy'!$X$7='Ověření dat'!$B$2,'Náklady - výnosy'!$J$55*(1+'Náklady - výnosy'!$Y$7)^('Výpočet NPV'!AB$6-1),'Náklady - výnosy'!$J$55) -> 106000 | AC11: =IF('Náklady - výnosy'!$X$7='Ověření dat'!$B$2,'Náklady - výnosy'!$J$55*(1+'Náklady - výnosy'!$Y$7)^('Výpočet NPV'!AC$6-1),'Náklady - výnosy'!$J$55) -> 106000
C12: Celkem výdaje | D12: =SUM(D7:D11) -> 45653000 | E12: =SUM(E7:E11) -> 166000 | F12: 166000 | G12: 166000 | H12: 166000 | I12: 166000 | J12: 166000 | K12: 166000 | L12: 166000 | M12: 166000 | N12: 286305.38 | O12: 166000 | P12: 166000 | Q12: 220087.6014 | R12: 166000 | S12: 1568358.54 | T12: 166000 | U12: 166000 | V12: 166000 | W12: 166000 | X12: 407621.7901 | Y12: 166000 | Z12: 166000 | AA12: 166000 | AB12: 166000 | AC12: 166000
B14: Výnosy | C14: Dodané elektřiny | D14: 0 | E14: =IF('Náklady - výnosy'!$S$4>0,'Náklady - výnosy'!$S$4,'Náklady - výnosy'!S10) -> 1070.6 | F14: =E14*(1-'Náklady - výnosy'!$S$13) -> 1065.247 | G14: =F14*(1-'Náklady - výnosy'!$S$13) -> 1059.920765 | H14: =G14*(1-'Náklady - výnosy'!$S$13) -> 1054.621161 | I14: =H14*(1-'Náklady - výnosy'!$S$13) -> 1049.348055 | J14: =I14*(1-'Náklady - výnosy'!$S$13) -> 1044.101315 | K14: =J14*(1-'Náklady - výnosy'!$S$13) -> 1038.880809 | L14: =K14*(1-'Náklady - výnosy'!$S$13) -> 1033.686404 | M14: =L14*(1-'Náklady - výnosy'!$S$13) -> 1028.517972 | N14: =M14*(1-'Náklady - výnosy'!$S$13) -> 1023.375383 | O14: =N14*(1-'Náklady - výnosy'!$S$13) -> 1018.258506 | P14: =O14*(1-'Náklady - výnosy'!$S$13) -> 1013.167213 | Q14: =P14*(1-'Náklady - výnosy'!$S$13) -> 1008.101377 | R14: =Q14*(1-'Náklady - výnosy'!$S$13) -> 1003.06087 | S14: =R14*(1-'Náklady - výnosy'!$S$13) -> 998.0455658 | T14: =S14*(1-'Náklady - výnosy'!$S$13) -> 993.055338 | U14: =T14*(1-'Náklady - výnosy'!$S$13) -> 988.0900613 | V14: =U14*(1-'Náklady - výnosy'!$S$13) -> 983.149611 | W14: =V14*(1-'Náklady - výnosy'!$S$13) -> 978.233863 | X14: =W14*(1-'Náklady - výnosy'!$S$13) -> 973.3426937 | Y14: =X14*(1-'Náklady - výnosy'!$S$13) -> 968.4759802 | Z14: =Y14*(1-'Náklady - výnosy'!$S$13) -> 963.6336003 | AA14: =Z14*(1-'Náklady - výnosy'!$S$13) -> 958.8154323 | AB14: =AA14*(1-'Náklady - výnosy'!$S$13) -> 954.0213551 | AC14: =AB14*(1-'Náklady - výnosy'!$S$13) -> 949.2512483
C15: Cena za MWh | D15: 0 | E15: ='Náklady - výnosy'!T17 -> 945 | F15: =IF('Náklady - výnosy'!$X$8='Ověření dat'!$B$2,'Náklady - výnosy'!$T$17*(1+'Náklady - výnosy'!$Y$8)^('Výpočet NPV'!F6-1),'Náklady - výnosy'!$T$17) -> 973.35 | G15: =IF('Náklady - výnosy'!$X$8='Ověření dat'!$B$2,'Náklady - výnosy'!$T$17*(1+'Náklady - výnosy'!$Y$8)^('Výpočet NPV'!G6-1),'Náklady - výnosy'!$T$17) -> 1002.5505 | H15: =IF('Náklady - výnosy'!$X$8='Ověření dat'!$B$2,'Náklady - výnosy'!$T$17*(1+'Náklady - výnosy'!$Y$8)^('Výpočet NPV'!H6-1),'Náklady - výnosy'!$T$17) -> 1032.627015 | I15: =IF('Náklady - výnosy'!$X$8='Ověření dat'!$B$2,'Náklady - výnosy'!$T$17*(1+'Náklady - výnosy'!$Y$8)^('Výpočet NPV'!I6-1),'Náklady - výnosy'!$T$17) -> 1063.605825 | J15: =IF('Náklady - výnosy'!$X$8='Ověření dat'!$B$2,'Náklady - výnosy'!$T$17*(1+'Náklady - výnosy'!$Y$8)^('Výpočet NPV'!J6-1),'Náklady - výnosy'!$T$17) -> 1095.514 | K15: =IF('Náklady - výnosy'!$X$8='Ověření dat'!$B$2,'Náklady - výnosy'!$T$17*(1+'Náklady - výnosy'!$Y$8)^('Výpočet NPV'!K6-1),'Náklady - výnosy'!$T$17) -> 1128.37942 | L15: =IF('Náklady - výnosy'!$X$8='Ověření dat'!$B$2,'Náklady - výnosy'!$T$17*(1+'Náklady - výnosy'!$Y$8)^('Výpočet NPV'!L6-1),'Náklady - výnosy'!$T$17) -> 1162.230803 | M15: =IF('Náklady - výnosy'!$X$8='Ověření dat'!$B$2,'Náklady - výnosy'!$T$17*(1+'Náklady - výnosy'!$Y$8)^('Výpočet NPV'!M6-1),'Náklady - výnosy'!$T$17) -> 1197.097727 | N15: =IF('Náklady - výnosy'!$X$8='Ověření dat'!$B$2,'Náklady - výnosy'!$T$17*(1+'Náklady - výnosy'!$Y$8)^('Výpočet NPV'!N6-1),'Náklady - výnosy'!$T$17) -> 1233.010659 | O15: =IF('Náklady - výnosy'!$X$8='Ověření dat'!$B$2,'Náklady - výnosy'!$T$17*(1+'Náklady - výnosy'!$Y$8)^('Výpočet NPV'!O6-1),'Náklady - výnosy'!$T$17) -> 1270.000978 | P15: =IF('Náklady - výnosy'!$X$8='Ověření dat'!$B$2,'Náklady - výnosy'!$T$17*(1+'Náklady - výnosy'!$Y$8)^('Výpočet NPV'!P6-1),'Náklady - výnosy'!$T$17) -> 1308.101008 | Q15: =IF('Náklady - výnosy'!$X$8='Ověření dat'!$B$2,'Náklady - výnosy'!$T$17*(1+'Náklady - výnosy'!$Y$8)^('Výpočet NPV'!Q6-1),'Náklady - výnosy'!$T$17) -> 1347.344038 | R15: =IF('Náklady - výnosy'!$X$8='Ověření dat'!$B$2,'Náklady - výnosy'!$T$17*(1+'Náklady - výnosy'!$Y$8)^('Výpočet NPV'!R6-1),'Náklady - výnosy'!$T$17) -> 1387.764359 | S15: =IF('Náklady - výnosy'!$X$8='Ověření dat'!$B$2,'Náklady - výnosy'!$T$17*(1+'Náklady - výnosy'!$Y$8)^('Výpočet NPV'!S6-1),'Náklady - výnosy'!$T$17) -> 1429.39729 | T15: =IF('Náklady - výnosy'!$X$8='Ověření dat'!$B$2,'Náklady - výnosy'!$T$17*(1+'Náklady - výnosy'!$Y$8)^('Výpočet NPV'!T6-1),'Náklady - výnosy'!$T$17) -> 1472.279209 | U15: =IF('Náklady - výnosy'!$X$8='Ověření dat'!$B$2,'Náklady - výnosy'!$T$17*(1+'Náklady - výnosy'!$Y$8)^('Výpočet NPV'!U6-1),'Náklady - výnosy'!$T$17) -> 1516.447585 | V15: =IF('Náklady - výnosy'!$X$8='Ověření dat'!$B$2,'Náklady - výnosy'!$T$17*(1+'Náklady - výnosy'!$Y$8)^('Výpočet NPV'!V6-1),'Náklady - výnosy'!$T$17) -> 1561.941012 | W15: =IF('Náklady - výnosy'!$X$8='Ověření dat'!$B$2,'Náklady - výnosy'!$T$17*(1+'Náklady - výnosy'!$Y$8)^('Výpočet NPV'!W6-1),'Náklady - výnosy'!$T$17) -> 1608.799243 | X15: =IF('Náklady - výnosy'!$X$8='Ověření dat'!$B$2,'Náklady - výnosy'!$T$17*(1+'Náklady - výnosy'!$Y$8)^('Výpočet NPV'!X6-1),'Náklady - výnosy'!$T$17) -> 1657.06322 | Y15: =IF('Náklady - výnosy'!$X$8='Ověření dat'!$B$2,'Náklady - výnosy'!$T$17*(1+'Náklady - výnosy'!$Y$8)^('Výpočet NPV'!Y6-1),'Náklady - výnosy'!$T$17) -> 1706.775117 | Z15: =IF('Náklady - výnosy'!$X$8='Ověření dat'!$B$2,'Náklady - výnosy'!$T$17*(1+'Náklady - výnosy'!$Y$8)^('Výpočet NPV'!Z6-1),'Náklady - výnosy'!$T$17) -> 1757.97837 | AA15: =IF('Náklady - výnosy'!$X$8='Ověření dat'!$B$2,'Náklady - výnosy'!$T$17*(1+'Náklady - výnosy'!$Y$8)^('Výpočet NPV'!AA6-1),'Náklady - výnosy'!$T$17) -> 1810.717721 | AB15: =IF('Náklady - výnosy'!$X$8='Ověření dat'!$B$2,'Náklady - výnosy'!$T$17*(1+'Náklady - výnosy'!$Y$8)^('Výpočet NPV'!AB6-1),'Náklady - výnosy'!$T$17) -> 1865.039253 | AC15: =IF('Náklady - výnosy'!$X$8='Ověření dat'!$B$2,'Náklady - výnosy'!$T$17*(1+'Náklady - výnosy'!$Y$8)^('Výpočet NPV'!AC6-1),'Náklady - výnosy'!$T$17) -> 1920.990431
C16: Celkem za elektřinu | E16: =E15*E14 -> 1011717 | F16: 1036858.167 | G16: 1062624.093 | H16: 1089030.302 | I16: 1116092.705 | J16: 1143827.608 | K16: 1172251.724 | L16: 1201382.18 | M16: 1231236.527 | N16: 1261832.755 | O16: 1293189.299 | P16: 1325325.053 | Q16: 1358259.38 | R16: 1392012.126 | S16: 1426603.627 | T16: 1462054.727 | U16: 1498386.787 | V16: 1535621.699 | W16: 1573781.898 | X16: 1612890.378 | Y16: 1652970.704 | Z16: 1694047.026 | AA16: 1736144.095 | AB16: 1779287.276 | AC16: 1823502.564
B18: Dotace | C18: Dotace | D18: ='Náklady - výnosy'!L32 -> 0 | E18: =IF(E6<='Náklady - výnosy'!$M$35,'Náklady - výnosy'!$L$35,0) -> 0 | F18: =IF(F6<='Náklady - výnosy'!$M$35,'Náklady - výnosy'!$L$35,0) -> 0 | G18: =IF(G6<='Náklady - výnosy'!$M$35,'Náklady - výnosy'!$L$35,0) -> 0 | H18: =IF(H6<='Náklady - výnosy'!$M$35,'Náklady - výnosy'!$L$35,0) -> 0 | I18: =IF(I6<='Náklady - výnosy'!$M$35,'Náklady - výnosy'!$L$35,0) -> 0 | J18: =IF(J6<='Náklady - výnosy'!$M$35,'Náklady - výnosy'!$L$35,0) -> 0 | K18: =IF(K6<='Náklady - výnosy'!$M$35,'Náklady - výnosy'!$L$35,0) -> 0 | L18: =IF(L6<='Náklady - výnosy'!$M$35,'Náklady - výnosy'!$L$35,0) -> 0 | M18: =IF(M6<='Náklady - výnosy'!$M$35,'Náklady - výnosy'!$L$35,0) -> 0 | N18: =IF(N6<='Náklady - výnosy'!$M$35,'Náklady - výnosy'!$L$35,0) -> 0 | O18: =IF(O6<='Náklady - výnosy'!$M$35,'Náklady - výnosy'!$L$35,0) -> 0 | P18: =IF(P6<='Náklady - výnosy'!$M$35,'Náklady - výnosy'!$L$35,0) -> 0 | Q18: =IF(Q6<='Náklady - výnosy'!$M$35,'Náklady - výnosy'!$L$35,0) -> 0 | R18: =IF(R6<='Náklady - výnosy'!$M$35,'Náklady - výnosy'!$L$35,0) -> 0 | S18: =IF(S6<='Náklady - výnosy'!$M$35,'Náklady - výnosy'!$L$35,0) -> 0 | T18: =IF(T6<='Náklady - výnosy'!$M$35,'Náklady - výnosy'!$L$35,0) -> 0 | U18: =IF(U6<='Náklady - výnosy'!$M$35,'Náklady - výnosy'!$L$35,0) -> 0 | V18: =IF(V6<='Náklady - výnosy'!$M$35,'Náklady - výnosy'!$L$35,0) -> 0 | W18: =IF(W6<='Náklady - výnosy'!$M$35,'Náklady - výnosy'!$L$35,0) -> 0 | X18: =IF(X6<='Náklady - výnosy'!$M$35,'Náklady - výnosy'!$L$35,0) -> 0 | Y18: =IF(Y6<='Náklady - výnosy'!$M$35,'Náklady - výnosy'!$L$35,0) -> 0 | Z18: =IF(Z6<='Náklady - výnosy'!$M$35,'Náklady - výnosy'!$L$35,0) -> 0 | AA18: =IF(AA6<='Náklady - výnosy'!$M$35,'Náklady - výnosy'!$L$35,0) -> 0 | AB18: =IF(AB6<='Náklady - výnosy'!$M$35,'Náklady - výnosy'!$L$35,0) -> 0 | AC18: =IF(AC6<='Náklady - výnosy'!$M$35,'Náklady - výnosy'!$L$35,0) -> 0
B20: Zdanitelné položky | C20: Odpisy | D20: 0 | E20: =(D7-D18)*'Náklady - výnosy'!N21 -> 981539.5 | F20: =IF(F6<='Náklady - výnosy'!$N$20,('Výpočet NPV'!$D$7-$D$18)*'Náklady - výnosy'!$N$22,0) -> 2351129.5 | G20: =IF(G6<='Náklady - výnosy'!$N$20,('Výpočet NPV'!$D$7-$D$18)*'Náklady - výnosy'!$N$22,0) -> 2351129.5 | H20: =IF(H6<='Náklady - výnosy'!$N$20,('Výpočet NPV'!$D$7-$D$18)*'Náklady - výnosy'!$N$22,0) -> 2351129.5 | I20: =IF(I6<='Náklady - výnosy'!$N$20,('Výpočet NPV'!$D$7-$D$18)*'Náklady - výnosy'!$N$22,0) -> 2351129.5 | J20: =IF(J6<='Náklady - výnosy'!$N$20,('Výpočet NPV'!$D$7-$D$18)*'Náklady - výnosy'!$N$22,0) -> 2351129.5 | K20: =IF(K6<='Náklady - výnosy'!$N$20,('Výpočet NPV'!$D$7-$D$18)*'Náklady - výnosy'!$N$22,0) -> 2351129.5 | L20: =IF(L6<='Náklady - výnosy'!$N$20,('Výpočet NPV'!$D$7-$D$18)*'Náklady - výnosy'!$N$22,0) -> 2351129.5 | M20: =IF(M6<='Náklady - výnosy'!$N$20,('Výpočet NPV'!$D$7-$D$18)*'Náklady - výnosy'!$N$22,0) -> 2351129.5 | N20: =IF(N6<='Náklady - výnosy'!$N$20,('Výpočet NPV'!$D$7-$D$18)*'Náklady - výnosy'!$N$22,0) -> 2351129.5 | O20: =IF(O6<='Náklady - výnosy'!$N$20,('Výpočet NPV'!$D$7-$D$18)*'Náklady - výnosy'!$N$22,0) -> 2351129.5 | P20: =IF(P6<='Náklady - výnosy'!$N$20,('Výpočet NPV'!$D$7-$D$18)*'Náklady - výnosy'!$N$22,0) -> 2351129.5 | Q20: =IF(Q6<='Náklady - výnosy'!$N$20,('Výpočet NPV'!$D$7-$D$18)*'Náklady - výnosy'!$N$22,0) -> 2351129.5 | R20: =IF(R6<='Náklady - výnosy'!$N$20,('Výpočet NPV'!$D$7-$D$18)*'Náklady - výnosy'!$N$22,0) -> 2351129.5 | S20: =IF(S6<='Náklady - výnosy'!$N$20,('Výpočet NPV'!$D$7-$D$18)*'Náklady - výnosy'!$N$22,0) -> 2351129.5 | T20: =IF(T6<='Náklady - výnosy'!$N$20,('Výpočet NPV'!$D$7-$D$18)*'Náklady - výnosy'!$N$22,0) -> 2351129.5 | U20: =IF(U6<='Náklady - výnosy'!$N$20,('Výpočet NPV'!$D$7-$D$18)*'Náklady - výnosy'!$N$22,0) -> 2351129.5 | V20: =IF(V6<='Náklady - výnosy'!$N$20,('Výpočet NPV'!$D$7-$D$18)*'Náklady - výnosy'!$N$22,0) -> 2351129.5 | W20: =IF(W6<='Náklady - výnosy'!$N$20,('Výpočet NPV'!$D$7-$D$18)*'Náklady - výnosy'!$N$22,0) -> 2351129.5 | X20: =IF(X6<='Náklady - výnosy'!$N$20,('Výpočet NPV'!$D$7-$D$18)*'Náklady - výnosy'!$N$22,0) -> 2351129.5 | Y20: =IF(Y6<='Náklady - výnosy'!$N$20,('Výpočet NPV'!$D$7-$D$18)*'Náklady - výnosy'!$N$22,0) -> 0 | Z20: =IF(Z6<='Náklady - výnosy'!$N$20,('Výpočet NPV'!$D$7-$D$18)*'Náklady - výnosy'!$N$22,0) -> 0 | AA20: =IF(AA6<='Náklady - výnosy'!$N$20,('Výpočet NPV'!$D$7-$D$18)*'Náklady - výnosy'!$N$22,0) -> 0 | AB20: =IF(AB6<='Náklady - výnosy'!$N$20,('Výpočet NPV'!$D$7-$D$18)*'Náklady - výnosy'!$N$22,0) -> 0 | AC20: =IF(AC6<='Náklady - výnosy'!$N$20,('Výpočet NPV'!$D$7-$D$18)*'Náklady - výnosy'!$N$22,0) -> 0
C21: Výdaje | D21: 0 | E21: =E12 -> 166000 | F21: 166000 | G21: 166000 | H21: 166000 | I21: 166000 | J21: 166000 | K21: 166000 | L21: 166000 | M21: 166000 | N21: 286305.38 | O21: 166000 | P21: 166000 | Q21: 220087.6014 | R21: 166000 | S21: 1568358.54 | T21: 166000 | U21: 166000 | V21: 166000 | W21: 166000 | X21: 407621.7901 | Y21: 166000 | Z21: 166000 | AA21: 166000 | AB21: 166000 | AC21: 166000
C22: Příjmy | D22: 0 | E22: =E16 -> 1011717 | F22: =F16 -> 1036858.167 | G22: 1062624.093 | H22: 1089030.302 | I22: 1116092.705 | J22: 1143827.608 | K22: 1172251.724 | L22: 1201382.18 | M22: 1231236.527 | N22: 1261832.755 | O22: 1293189.299 | P22: 1325325.053 | Q22: 1358259.38 | R22: 1392012.126 | S22: 1426603.627 | T22: 1462054.727 | U22: 1498386.787 | V22: 1535621.699 | W22: 1573781.898 | X22: 1612890.378 | Y22: 1652970.704 | Z22: 1694047.026 | AA22: 1736144.095 | AB22: 1779287.276 | AC22: 1823502.564
C23: Základ daně | D23: =D22-D21-D20 -> 0 | E23: =E22-E21-E20 -> -135822.5 | F23: =F22-F21-F20 -> -1480271.333 | G23: -1454505.407 | H23: -1428099.198 | I23: -1401036.795 | J23: -1373301.892 | K23: -1344877.776 | L23: -1315747.32 | M23: -1285892.973 | N23: -1375602.125 | O23: -1223940.201 | P23: -1191804.447 | Q23: -1212957.721 | R23: -1125117.374 | S23: -2492884.413 | T23: -1055074.773 | U23: -1018742.713 | V23: -981507.8011 | W23: -943347.6019 | X23: -1145860.912 | Y23: 1486970.704 | Z23: 1528047.026 | AA23: 1570144.095 | AB23: 1613287.276 | AC23: 1657502.564
C24: Daň | D24: =IF(D23<0,0,D23*'Náklady - výnosy'!$N$7) -> 0 | E24: =IF(E23<0,0,E23*'Náklady - výnosy'!$N$7) -> 0 | F24: =IF(F23<0,0,F23*'Náklady - výnosy'!$N$7) -> 0 | G24: =IF(G23<0,0,G23*'Náklady - výnosy'!$N$7) -> 0 | H24: =IF(H23<0,0,H23*'Náklady - výnosy'!$N$7) -> 0 | I24: =IF(I23<0,0,I23*'Náklady - výnosy'!$N$7) -> 0 | J24: =IF(J23<0,0,J23*'Náklady - výnosy'!$N$7) -> 0 | K24: =IF(K23<0,0,K23*'Náklady - výnosy'!$N$7) -> 0 | L24: =IF(L23<0,0,L23*'Náklady - výnosy'!$N$7) -> 0 | M24: =IF(M23<0,0,M23*'Náklady - výnosy'!$N$7) -> 0 | N24: =IF(N23<0,0,N23*'Náklady - výnosy'!$N$7) -> 0 | O24: =IF(O23<0,0,O23*'Náklady - výnosy'!$N$7) -> 0 | P24: =IF(P23<0,0,P23*'Náklady - výnosy'!$N$7) -> 0 | Q24: =IF(Q23<0,0,Q23*'Náklady - výnosy'!$N$7) -> 0 | R24: =IF(R23<0,0,R23*'Náklady - výnosy'!$N$7) -> 0 | S24: =IF(S23<0,0,S23*'Náklady - výnosy'!$N$7) -> 0 | T24: =IF(T23<0,0,T23*'Náklady - výnosy'!$N$7) -> 0 | U24: =IF(U23<0,0,U23*'Náklady - výnosy'!$N$7) -> 0 | V24: =IF(V23<0,0,V23*'Náklady - výnosy'!$N$7) -> 0 | W24: =IF(W23<0,0,W23*'Náklady - výnosy'!$N$7) -> 0 | X24: =IF(X23<0,0,X23*'Náklady - výnosy'!$N$7) -> 0 | Y24: =IF(Y23<0,0,Y23*'Náklady - výnosy'!$N$7) -> 282524.4338 | Z24: =IF(Z23<0,0,Z23*'Náklady - výnosy'!$N$7) -> 290328.935 | AA24: =IF(AA23<0,0,AA23*'Náklady - výnosy'!$N$7) -> 298327.378 | AB24: =IF(AB23<0,0,AB23*'Náklady - výnosy'!$N$7) -> 306524.5823 | AC24: =IF(AC23<0,0,AC23*'Náklady - výnosy'!$N$7) -> 314925.4872
B26: Cash Flow | C26: Celkem za obdobi | D26: =D16-D12+D18-D24 -> -45653000 | E26: =E16-E12-E24+E18 -> 845717 | F26: =F16-F12-F24+F18 -> 870858.1674 | G26: 896624.0929 | H26: 923030.3016 | I26: 950092.7046 | J26: 977827.6083 | K26: 1006251.724 | L26: 1035382.18 | M26: 1065236.527 | N26: 975527.3746 | O26: 1127189.299 | P26: 1159325.053 | Q26: 1138171.779 | R26: 1226012.126 | S26: -141754.913 | T26: 1296054.727 | U26: 1332386.787 | V26: 1369621.699 | W26: 1407781.898 | X26: 1205268.588 | Y26: 1204446.27 | Z26: 1237718.091 | AA26: 1271816.717 | AB26: 1306762.693 | AC26: 1342577.077
C27: CCF | D27: =D26 -> -45653000 | E27: =SUM($D$26:E26) -> -44807283 | F27: =SUM($D$26:F26) -> -43936424.83 | G27: =SUM($D$26:G26) -> -43039800.74 | H27: =SUM($D$26:H26) -> -42116770.44 | I27: =SUM($D$26:I26) -> -41166677.73 | J27: =SUM($D$26:J26) -> -40188850.13 | K27: =SUM($D$26:K26) -> -39182598.4 | L27: =SUM($D$26:L26) -> -38147216.22 | M27: =SUM($D$26:M26) -> -37081979.69 | N27: =SUM($D$26:N26) -> -36106452.32 | O27: =SUM($D$26:O26) -> -34979263.02 | P27: =SUM($D$26:P26) -> -33819937.97 | Q27: =SUM($D$26:Q26) -> -32681766.19 | R27: =SUM($D$26:R26) -> -31455754.06 | S27: =SUM($D$26:S26) -> -31597508.98 | T27: =SUM($D$26:T26) -> -30301454.25 | U27: =SUM($D$26:U26) -> -28969067.46 | V27: =SUM($D$26:V26) -> -27599445.76 | W27: =SUM($D$26:W26) -> -26191663.87 | X27: =SUM($D$26:X26) -> -24986395.28 | Y27: =SUM($D$26:Y26) -> -23781949.01 | Z27: =SUM($D$26:Z26) -> -22544230.92 | AA27: =SUM($D$26:AA26) -> -21272414.2 | AB27: =SUM($D$26:AB26) -> -19965651.51 | AC27: =SUM($D$26:AC26) -> -18623074.43
C28: DCF | D28: =D27 -> -45653000 | E28: =E26/((1+'Náklady - výnosy'!$N$6)^E6) -> 767716.9572 | F28: =F26/((1+'Náklady - výnosy'!$N$6)^F6) -> 717628.3294 | G28: =G26/((1+'Náklady - výnosy'!$N$6)^G6) -> 670715.9322 | H28: =H26/((1+'Náklady - výnosy'!$N$6)^H6) -> 626787.3884 | I28: =I26/((1+'Náklady - výnosy'!$N$6)^I6) -> 585661.0572 | J28: =J26/((1+'Náklady - výnosy'!$N$6)^J6) -> 547165.5319 | K28: =K26/((1+'Náklady - výnosy'!$N$6)^K6) -> 511139.1505 | L28: =L26/((1+'Náklady - výnosy'!$N$6)^L6) -> 477429.5195 | M28: =M26/((1+'Náklady - výnosy'!$N$6)^M6) -> 445893.0516 | N28: =N26/((1+'Náklady - výnosy'!$N$6)^N6) -> 370680.8825 | O28: =O26/((1+'Náklady - výnosy'!$N$6)^O6) -> 388806.6257 | P28: =P26/((1+'Náklady - výnosy'!$N$6)^P6) -> 363009.5863 | Q28: =Q26/((1+'Náklady - výnosy'!$N$6)^Q6) -> 323516.7408 | R28: =R26/((1+'Náklady - výnosy'!$N$6)^R6) -> 316344.1328 | S28: =S26/((1+'Náklady - výnosy'!$N$6)^S6) -> -33203.14417 | T28: =T26/((1+'Náklady - výnosy'!$N$6)^T6) -> 275575.4368 | U28: =U26/((1+'Náklady - výnosy'!$N$6)^U6) -> 257171.924 | V28: =V26/((1+'Náklady - výnosy'!$N$6)^V6) -> 239977.1755 | W28: =W26/((1+'Náklady - výnosy'!$N$6)^W6) -> 223913.7477 | X28: =X26/((1+'Náklady - výnosy'!$N$6)^X6) -> 174022.4558 | Y28: =Y26/((1+'Náklady - výnosy'!$N$6)^Y6) -> 157864.6747 | Z28: =Z26/((1+'Náklady - výnosy'!$N$6)^Z6) -> 147263.575 | AA28: =AA26/((1+'Náklady - výnosy'!$N$6)^AA6) -> 137364.4028 | AB28: =AB26/((1+'Náklady - výnosy'!$N$6)^AB6) -> 128121.6353 | AC28: =AC26/((1+'Náklady - výnosy'!$N$6)^AC6) -> 119492.6098
C29: CDCF | D29: =D28 -> -45653000 | E29: =SUM($D$28:E28) -> -44885283.04 | F29: =SUM($D$28:F28) -> -44167654.71 | G29: =SUM($D$28:G28) -> -43496938.78 | H29: =SUM($D$28:H28) -> -42870151.39 | I29: =SUM($D$28:I28) -> -42284490.34 | J29: =SUM($D$28:J28) -> -41737324.8 | K29: =SUM($D$28:K28) -> -41226185.65 | L29: =SUM($D$28:L28) -> -40748756.13 | M29: =SUM($D$28:M28) -> -40302863.08 | N29: =SUM($D$28:N28) -> -39932182.2 | O29: =SUM($D$28:O28) -> -39543375.57 | P29: =SUM($D$28:P28) -> -39180365.99 | Q29: =SUM($D$28:Q28) -> -38856849.25 | R29: =SUM($D$28:R28) -> -38540505.11 | S29: =SUM($D$28:S28) -> -38573708.26 | T29: =SUM($D$28:T28) -> -38298132.82 | U29: =SUM($D$28:U28) -> -38040960.9 | V29: =SUM($D$28:V28) -> -37800983.72 | W29: =SUM($D$28:W28) -> -37577069.97 | X29: =SUM($D$28:X28) -> -37403047.52 | Y29: =SUM($D$28:Y28) -> -37245182.84 | Z29: =SUM($D$28:Z28) -> -37097919.27 | AA29: =SUM($D$28:AA28) -> -36960554.87 | AB29: =SUM($D$28:AB28) -> -36832433.23 | AC29: =SUM($D$28:AC28) -> -36712940.62
D31: =IF(D27>0,-1,"-") -> - | E31: =IF(AND(D27<0,E27>0),E6,"-") -> - | F31: - | G31: - | H31: - | I31: - | J31: - | K31: - | L31: - | M31: - | N31: - | O31: - | P31: - | Q31: - | R31: - | S31: - | T31: - | U31: - | V31: - | W31: - | X31: - | Y31: - | Z31: - | AA31: - | AB31: - | AC31: - | AD31: =MIN(D31:AC31) -> 0
B33: Kritéria pro hodnocení výnosnosti investičních projektů
B35: NPV | C35: =NPV('Náklady - výnosy'!N6,'Výpočet NPV'!E26:AC26)+D26 -> -36712940.62
B36: ROI | C36: =(AC27-D27)/AC6/-D27 -> 0.02368293481
B37: IRR | C37: =IRR(D26:AC26,'Náklady - výnosy'!N6) -> -0.03476408978
B38: Diskont | C38: =(1+C37)/(1+'Náklady - výnosy'!N5)-1 -> -0.0536902841
B39: Doba návratnosti | C39: =IF(AD31=-1,"Okamžitá návratnost",IF(AD31=0,">25",AD31)) -> >25

Sheet Mezní podmínky
B2: Výpočet mezniních podmínek aby NPV = 0
B4: Cena elektřiny za 1 MWh | D4: 171.3385952 | E4: € | F4: =IF(E4='Náklady - výnosy'!L13,D4*'Náklady - výnosy'!M13,IF(E4='Náklady - výnosy'!L14,D4*'Náklady - výnosy'!M14,D4)) -> 4626.142071
B5: Potřebná výroba elektřiny | D5: 5241.002858 | E5: MWh
B6: Dotace Investiční (Snížení prvotní investice) | D6: 37690015.92 | E6: Kč
B7: Cena panelů | D7: -128.1669321 | E7: $ | F7: =IF(E7='Náklady - výnosy'!L13,D7*'Náklady - výnosy'!M13,IF(E7='Náklady - výnosy'!L14,D7*'Náklady - výnosy'!M14,D7)) -> -3204.173302
B10: V případe že makra nefungují:
B11: V menu zvolte Data-> Data Tools-> What-If Analysis-> Goal Seek
B25: Ve vyskakovacím okně potom zadáme následující hodnoty:
B27: Set Cell: | C27: Výpočet NPV'!C35
B28: To Value | C28: 0
B29: By changing cell: | C29: Náklady - výnosy'!P17 | D29: Cena el.
C30: Náklady - výnosy'!S4 | D30: Výroba
C31: Náklady - výnosy'!L32 | D31: Dotace
C32: Náklady - výnosy'!F5 | D32: Cena Panelu
C35: Musí být zadaná vždy jen jedna buňka. Špatně: 'Výdaje - Příjmy'!P17:R17; Dobře:'Výdaje - Příjmy'!P17

Sheet Citlivostní a. - infl.+dis
E53: Inflace
D54: =(NPV((1+D92)*(1+D93)-1,'Výpočet NPV'!$E$26:$AC$26)+'Výpočet NPV'!D26)/1000000 -> -36.71294062 | E54: 0 | F54: 0.0025 | G54: 0.005 | H54: 0.0075 | I54: 0.01 | J54: 0.0125 | K54: 0.015 | L54: 0.0175 | M54: 0.02 | N54: 0.0225 | O54: 0.025 | P54: 0.0275 | Q54: 0.03 | R54: 0.0325 | S54: 0.035 | T54: 0.0375 | U54: 0.04 | V54: 0.0425 | W54: 0.045 | X54: 0.0475 | Y54: 0.05
C55: Diskont | D55: -0.07 | E55: 38.82834161 | F55: 35.25431045 | G55: 31.85996424 | H55: 28.635371 | I55: 25.57118668 | J55: 22.65861839 | K55: 19.88938997 | L55: 17.25570992 | M55: 14.75024132 | N55: 12.36607376 | O55: 10.09669713 | P55: 7.935976982 | Q55: 5.878131631 | R55: 3.917710602 | S55: 2.049574526 | T55: 0.2688763051 | U55: -1.428956532 | V55: -3.048238344 | W55: -4.593040857 | X55: -6.067207654 | Y55: -7.474367769
D56: -0.065 | E56: 31.36392354 | F56: 28.14729574 | G56: 25.09138535 | H56: 22.18734241 | I56: 19.42683946 | J56: 16.80203892 | K56: 14.3055626 | L56: 11.93046318 | M56: 9.670197601 | N56: 7.518602083 | O56: 5.469868878 | P56: 3.518524442 | Q56: 1.659409053 | R56: -0.1123422869 | S56: -1.801317712 | T56: -3.411845224 | U56: -4.948008355 | V56: -6.41366084 | W56: -7.812440363 | X56: -9.147781435 | Y56: -10.42292747
D57: -0.06 | E57: 24.67871957 | F57: 21.78009068 | G57: 19.02536791 | H57: 16.40665777 | I57: 13.91653159 | J57: 11.5479965 | K57: 9.294468428 | L57: 7.149746701 | M57: 5.107990439 | N57: 3.163696402 | O57: 1.311678294 | P57: -0.4529526074 | Q57: -2.134805564 | R57: -3.738227347 | S57: -5.267318109 | T57: -6.725946253 | U57: -8.117762358 | V57: -9.446212221 | W57: -10.71454908 | X57: -11.92584506 | Y57: -13.08300191
D58: -0.055 | E58: 18.68365104 | F58: 16.06826795 | G58: 13.58187617 | H58: 11.21742851 | I58: 8.968291659 | J58: 6.828220389 | K58: 4.791333499 | L58: 2.852091319 | M58: 1.005274682 | N58: -0.754034758 | O58: -2.430472926 | P58: -4.028410546 | Q58: -5.551969252 | R58: -7.00503668 | S58: -8.391280583 | T58: -9.714162063 | U58: -10.97694795 | V58: -12.18272243 | W58: -13.33439788 | X58: -14.43472511 | Y58: -15.48630286
D59: -0.05 | E59: 13.30050889 | F59: 10.93768992 | G59: 8.690617034 | H59: 6.552992587 | I59: 4.51888774 | J59: 2.582719548 | K59: 0.7392295579 | L59: -1.016536201 | M59: -2.689245932 | N59: -4.283299573 | O59: -5.802845177 | P59: -7.251794228 | Q59: -8.63383599 | R59: -9.952450933 | S59: -11.21092331 | T59: -12.41235291 | U59: -13.55966612 | V59: -14.65562626 | W59: -15.70284322 | X59: -16.70378261 | Y59: -17.66077422
D60: -0.045 | E60: 8.460555664 | F60: 6.323186434 | G60: 4.289789305 | H60: 2.354731055 | I60: 0.5127074004 | J60: -1.241277376 | K60: -2.911929484 | L60: -4.503683438 | M60: -6.020718721 | N60: -7.466975369 | O60: -8.846168561 | P60: -10.16180226 | Q60: -11.417182 | R60: -12.61542682 | S60: -13.75948053 | T60: -14.85212211 | U60: -15.89597565 | V60: -16.89351945 | W60: -17.84709474 | X60: -18.75891376 | Y60: -19.63106729
D61: -0.04 | E61: 4.103315664 | F61: 2.167410388 | G61: 0.3250009004 | H61: -1.428956532 | I61: -3.099211981 | J61: -4.690240016 | K61: -6.206256676 | L61: -7.651235346 | M61: -9.028921604 | N61: -10.34284711 | O61: -11.59634262 | P61: -12.79255013 | Q61: -13.93443427 | R61: -15.02479302 | S61: -16.06626761 | T61: -17.06135196 | U61: -18.01240141 | V61: -18.92164094 | W61: -19.79117289 | X61: -20.62298417 | Y61: -21.41895303
D62: -0.035 | E62: 0.1755268082 | F62: -1.580153804 | G62: -3.251669323 | H62: -4.843539989 | I62: -6.360023651 | J62: -7.805131947 | K62: -9.182645449 | L62: -10.49612782 | M62: -11.74893904 | N62: -12.94424782 | O62: -14.0850432 | P62: -15.17414537 | Q62: -16.21421588 | R62: -17.20776713 | S62: -18.1571713 | T62: -19.06466869 | U62: -19.93237556 | V62: -20.76229148 | W62: -21.55630617 | X62: -22.316206 | Y62: -23.04368
D63: -0.03 | E63: -3.369768253 | F63: -4.964050142 | G63: -6.482485313 | H63: -7.929128705 | I63: -9.307800595 | J63: -10.62210104 | K63: -11.8754234 | L63: -13.07096694 | M63: -14.21174869 | N63: -15.30061448 | O63: -16.3402493 | P63: -17.33318702 | Q63: -18.28181941 | R63: -19.18840472 | S63: -20.05507558 | T63: -20.88384647 | U63: -21.67662078 | V63: -22.43519729 | W63: -23.16127634 | X63: -23.85646562 | Y63: -24.52228557
D64: -0.025 | E64: -6.574011061 | F64: -8.023597543 | G64: -9.404760322 | H64: -10.72114039 | I64: -11.9761687 | J64: -13.17307906 | K64: -14.31492017 | L64: -15.40456697 | M64: -16.44473115 | N64: -17.43797106 | O64: -18.38670094 | P64: -19.29319961 | Q64: -20.15961857 | R64: -20.98798959 | S64: -21.78023188 | T64: -22.53815869 | U64: -23.26348362 | V64: -23.95782646 | W64: -24.62271873 | X64: -25.25960877 | Y64: -25.86986665
D65: -0.02 | E65: -9.473812806 | F65: -10.7935385 | G65: -12.05147088 | H65: -13.25088236 | I65: -14.39485716 | J65: -15.48630286 | K65: -16.5279612 | L65: -17.52241811 | M65: -18.47211323 | N65: -19.37934869 | O65: -20.24629741 | P65: -21.07501085 | Q65: -21.86742626 | R65: -22.6253735 | S65: -23.35058137 | T65: -24.04468365 | U65: -24.70922463 | V65: -25.3456644 | W65: -25.95538376 | X65: -26.53968886 | Y65: -27.0998155
D66: -0.015 | E66: -12.10155045 | F66: -13.3046033 | G66: -14.4517909 | H66: -15.54605716 | I66: -16.59017729 | J66: -17.58676803 | K66: -18.53829741 | L66: -19.44709368 | M66: -20.31535381 | N66: -21.1451514 | O66: -21.93844408 | P66: -22.69708044 | Q66: -23.42280653 | R66: -24.11727198 | S66: -24.78203565 | T66: -25.41857105 | U66: -26.02827128 | V66: -26.6124538 | W66: -27.17236481 | X66: -27.70918339 | Y66: -28.22402539
D67: -0.01 | E67: -14.48588568 | F67: -15.58400122 | G67: -16.63155669 | H67: -17.63120302 | I67: -18.58543968 | J67: -19.49662396 | K67: -20.36697959 | L67: -21.19860485 | M67: -21.99348011 | N67: -22.75347491 | O67: -23.48035465 | P67: -24.17578672 | Q67: -24.84134643 | R67: -25.47852235 | S67: -26.08872154 | T67: -26.67327425 | U67: -27.23343848 | V67: -27.77040417 | W67: -28.28529715 | X67: -28.77918291 | Y67: -29.25306998
D68: -0.005 | E68: -16.65221707 | F68: -17.65584858 | G68: -18.61367232 | H68: -19.52807761 | I68: -20.40131774 | J68: -21.23551828 | K68: -22.03268478 | L68: -22.79471006 | M68: -23.52338096 | N68: -24.2203847 | O68: -24.88731484 | P68: -25.52567685 | Q68: -26.13689332 | R68: -26.72230889 | S68: -27.28319479 | T68: -27.82075318 | U68: -28.33612116 | V68: -28.83037459 | W68: -29.3045316 | X68: -29.75955595 | Y68: -30.19636017
D69: 9.714451465e-17 | E69: -18.62307443 | F69: -19.54154215 | G69: -20.41846315 | H69: -21.255993 | I69: -22.05616499 | J69: -22.82089754 | K69: -23.55200119 | L69: -24.25118503 | M69: -24.92006284 | N69: -25.56015878 | O69: -26.1729127 | P69: -26.75968517 | Q69: -27.32176218 | R69: -27.8603595 | S69: -28.37662679 | T69: -28.87165154 | U69: -29.34646261 | V69: -29.80203365 | W69: -30.23928635 | X69: -30.65909335 | Y69: -31.0622811
D70: 0.005 | E70: -20.41846315 | F70: -21.26008514 | G70: -22.06398463 | H70: -22.83210814 | I70: -23.56629215 | J70: -24.2682698 | K70: -24.9396771 | L70: -25.58205875 | M70: -26.19687364 | N70: -26.78549993 | O70: -27.34923987 | P70: -27.88932429 | Q70: -28.40691679 | R70: -28.90311772 | S70: -29.37896786 | T70: -29.83545189 | U70: -30.27350168 | V70: -30.69399929 | W70: -31.0977799 | X70: -31.48563446 | Y70: -31.85831223
D71: 0.01 | E71: -22.05616499 | F71: -22.82837211 | G71: -23.56629215 | H71: -24.27168448 | I71: -24.94620944 | J71: -25.59143422 | K71: -26.20883856 | L71: -26.7998199 | M71: -27.36569838 | N71: -27.90772136 | O71: -28.42706776 | P71: -28.92485212 | Q71: -29.40212837 | R71: -29.85989334 | S71: -30.29909018 | T71: -30.72061138 | U71: -31.12530177 | V71: -31.51396126 | W71: -31.8873474 | X71: -32.2461778 | Y71: -32.59113246
D72: 0.015 | E72: -23.55200119 | F72: -24.26143816 | G72: -24.9396771 | H72: -25.58830975 | I72: -26.20883856 | J72: -26.80268205 | K72: -27.37117987 | L72: -27.91559748 | M72: -28.43713056 | N72: -28.9369092 | O72: -29.41600172 | P72: -29.87541832 | Q72: -30.31611452 | R72: -30.73899429 | S72: -31.1449131 | T72: -31.53468072 | U72: -31.90906383 | V72: -32.26878855 | W72: -32.61454271 | X72: -32.94697806 | Y72: -33.26671231
D73: 0.02 | E73: -24.92006284 | F73: -25.57267714 | G73: -26.19687364 | H73: -26.79409376 | I73: -27.36569838 | J73: -27.91297266 | K73: -28.43713056 | L73: -28.93931911 | M73: -29.42062235 | N73: -29.88206507 | O73: -30.32461631 | P73: -30.74919261 | Q73: -31.15666108 | R73: -31.5478423 | S73: -31.923513 | T73: -32.28440858 | U73: -32.63122553 | V73: -32.96462362 | W73: -33.285228 | X73: -33.5936312 | Y73: -33.89039495
D74: 0.025 | E74: -26.1729127 | F74: -26.77403287 | G74: -27.34923987 | H74: -27.89984024 | I74: -28.42706776 | J74: -28.93208788 | K74: -29.41600172 | L74: -29.87984994 | M74: -30.32461631 | N74: -30.75123104 | O74: -31.16057394 | P74: -31.55347739 | Q74: -31.93072906 | R74: -32.29307454 | S74: -32.64121975 | T74: -32.97583324 | U74: -33.29754834 | V74: -33.60696514 | W74: -33.9046524 | X74: -34.19114934 | Y74: -34.46696729
D75: 0.03 | E75: -27.32176218 | F75: -27.87616684 | G75: -28.40691679 | H75: -28.91519742 | I75: -29.40212837 | J75: -29.86876749 | K75: -30.31611452 | L75: -30.74511451 | M75: -31.15666108 | N75: -31.5515994 | O75: -31.93072906 | P75: -32.29480671 | Q75: -32.64454858 | R75: -32.98063276 | S75: -33.30370148 | T75: -33.61436311 | U75: -33.91319408 | V75: -34.20074079 | W75: -34.47752119 | X75: -34.74402649 | Y75: -35.0007226
D76: 0.035 | E76: -28.37662679 | F76: -28.88860546 | G76: -29.37896786 | H76: -29.84879043 | I76: -30.29909018 | J76: -30.73082822 | K76: -31.1449131 | L76: -31.54220386 | M76: -31.923513 | N76: -32.28960917 | O76: -32.64121975 | P76: -32.97903323 | Q76: -33.30370148 | R76: -33.61584186 | S76: -33.91603919 | T76: -34.2048476 | U76: -34.48279232 | V76: -34.75037129 | W76: -35.00805671 | X76: -35.25629648 | Y76: -35.49551556
D77: 0.04 | E77: -29.34646261 | F77: -29.81986951 | G77: -30.27350168 | H77: -30.70833755 | I77: -31.12530177 | J77: -31.52526839 | K77: -31.90906383 | L77: -32.27746973 | M77: -32.63122553 | N77: -32.97103096 | O77: -33.29754834 | P77: -33.61140475 | Q77: -33.91319408 | R77: -34.20347891 | S77: -34.48279232 | T77: -34.75163956 | U77: -35.01049965 | V77: -35.25982684 | W77: -35.50005202 | X77: -35.73158403 | Y77: -35.95481087
D78: 0.045 | E78: -30.23928635 | F78: -30.67758789 | G78: -31.0977799 | H78: -31.50075258 | I78: -31.8873474 | J78: -32.25835995 | K78: -32.61454271 | L78: -32.95660752 | M78: -33.285228 | N78: -33.60104174 | O78: -33.9046524 | P78: -34.19663169 | Q78: -34.47752119 | R78: -34.74783406 | S78: -35.00805671 | T78: -35.25865026 | U78: -35.50005202 | V78: -35.7326768 | W78: -35.95691819 | X78: -36.17314973 | Y78: -36.38172606
D79: 0.05 | E79: -31.0622811 | F79: -31.46859784 | G79: -31.85831223 | H79: -32.23223495 | I79: -32.59113246 | J79: -32.93572965 | K79: -33.26671231 | L79: -33.58472933 | M79: -33.89039495 | N79: -34.18429069 | O79: -34.46696729 | P79: -34.73894648 | Q79: -35.0007226 | R79: -35.25276422 | S79: -35.49551556 | T79: -35.72939791 | U79: -35.95481087 | V79: -36.17213363 | W79: -36.38172606 | X79: -36.5839298 | Y79: -36.77906929
D80: 0.055 | E80: -31.82188935 | F80: -32.19903322 | G80: -32.56094016 | H80: -32.90834909 | I80: -33.24195886 | J80: -33.56243053 | K80: -33.87038968 | L80: -34.16642842 | M80: -34.45110734 | N80: -34.72495737 | O80: -34.98848142 | P80: -35.24215607 | Q80: -35.48643299 | R80: -35.72174044 | S80: -35.94848453 | T80: -36.16705051 | U80: -36.3778039 | V80: -36.58109166 | W80: -36.77724316 | X80: -36.96657117 | Y80: -37.14937281
D81: 0.06 | E81: -32.52389516 | F81: -32.87440237 | G81: -33.21091079 | H81: -33.53409459 | I81: -33.8445915 | J81: -34.14300499 | K81: -34.42990626 | L81: -34.70583608 | M81: -34.9713066 | N81: -35.22680299 | O81: -35.47278496 | P81: -35.70968824 | Q81: -35.93792594 | R81: -36.15788983 | S81: -36.36995155 | T81: -36.57446374 | U81: -36.77176109 | V81: -36.96216136 | W81: -37.14596631 | X81: -37.32346259 | Y81: -37.49492255
D82: 0.065 | E82: -33.17349657 | F82: -33.49965684 | G82: -33.81294209 | H82: -34.11396796 | I82: -34.40331701 | J82: -34.6815406 | K82: -34.94916077 | L82: -35.2066719 | M82: -35.45454233 | N82: -35.69321581 | O82: -35.92311297 | P82: -36.14463259 | Q82: -36.35815286 | R82: -36.56403254 | S82: -36.76261203 | T82: -36.95421446 | U82: -37.13914657 | V82: -37.31769969 | W82: -37.49015054 | X82: -37.65676208 | Y82: -37.81778423
D83: 0.07 | E83: -33.77536961 | F83: -34.07925207 | G83: -34.37128042 | H83: -34.65201739 | I83: -34.9219956 | J83: -35.1817193 | K83: -35.43166606 | L83: -35.67228825 | M83: -35.90401454 | N83: -36.12725124 | O83: -36.34238355 | P83: -36.54977679 | Q83: -36.74977752 | R83: -36.94271458 | S83: -37.12890009 | T83: -37.30863039 | U83: -37.4821869 | V83: -37.64983697 | W83: -37.81183463 | X83: -37.96842133 | Y83: -38.11982663
D84: 0.075 | E84: -34.33372489 | F84: -34.61720112 | G84: -34.88975156 | H84: -35.15189105 | I84: -35.40410701 | J84: -35.64686105 | K84: -35.88059045 | L84: -36.10570954 | M84: -36.32261106 | N84: -36.53166737 | O84: -36.73323157 | P84: -36.92763867 | Q84: -37.11520653 | R84: -37.29623686 | S84: -37.47101613 | T84: -37.63981637 | U84: -37.80289604 | V84: -37.96050071 | W84: -38.11286381 | X84: -38.26020727 | Y84: -38.40274215
D85: 0.08 | E85: -34.8523577 | F85: -35.11712218 | G85: -35.37180577 | H85: -35.61687995 | I85: -35.85279118 | J85: -36.07996243 | K85: -36.29879446 | L85: -36.50966714 | M85: -36.71294062 | N85: -36.90895646 | O85: -37.09803867 | P85: -37.28049472 | Q85: -37.45661645 | R85: -37.62668096 | S85: -37.7909514 | T85: -37.94967776 | U85: -38.10309762 | V85: -38.25143678 | W85: -38.39490995 | X85: -38.53372131 | Y85: -38.66806511
D86: 0.085 | E86: -35.33469232 | F86: -35.58228062 | G86: -35.82055774 | H86: -36.04995583 | I86: -36.27088423 | J86: -36.48373084 | K86: -36.68886333 | L86: -36.88663026 | M86: -37.07736223 | N86: -37.26137286 | O86: -37.43895972 | P86: -37.6104053 | Q86: -37.77597781 | R86: -37.93593195 | S86: -38.09050973 | T86: -38.23994109 | U86: -38.38444462 | V86: -38.52422816 | W86: -38.65948938 | X86: -38.79041633 | Y86: -38.91718797
D87: 0.09 | E87: -35.78382134 | F87: -36.01562636 | G87: -36.23882204 | H87: -36.45380484 | I87: -36.66095043 | J87: -36.86061489 | K87: -37.05313581 | L87: -37.23883336 | M87: -37.41801128 | N87: -37.5909578 | O87: -37.7579465 | P87: -37.91923714 | Q87: -38.07507643 | R87: -38.22569877 | S87: -38.37132688 | T87: -38.51217249 | U87: -38.64843693 | V87: -38.78031166 | W87: -38.90797887 | X87: -39.0316119 | Y87: -39.1513758
D88: 0.095 | E88: -36.20254053 | F88: -36.41982693 | G88: -36.62914454 | H88: -36.83085741 | I88: -37.02531062 | J88: -37.21283135 | K88: -37.39372986 | L88: -37.56830053 | M88: -37.73682267 | N88: -37.89956144 | O88: -38.05676857 | P88: -38.20868319 | Q88: -38.35553245 | R88: -38.49753222 | S88: -38.63488773 | T88: -38.7677941 | U88: -38.89643692 | V88: -39.02099278 | W88: -39.14162973 | X88: -39.25850773 | Y88: -39.37177913
D89: 0.1 | E89: -36.59337984 | F89: -36.79729692 | G89: -36.99383035 | H89: -37.18331474 | I89: -37.36606736 | J89: -37.54238909 | K89: -37.71256539 | L89: -37.87686713 | M89: -38.03555142 | N89: -38.18886242 | O89: -38.33703199 | P89: -38.48028045 | Q89: -38.61881715 | R89: -38.75284111 | S89: -38.88254159 | T89: -39.00809859 | U89: -39.12968338 | V89: -39.24745895 | W89: -39.36158047 | X89: -39.47219573 | Y89: -39.57944545
C92: rr | D92: ='Náklady - výnosy'!N4 -> 0.08
C93: alfa | D93: ='Náklady - výnosy'!N5 -> 0.02
D100: 0.1

Sheet Citlivostní a. - elektrina
B32: Cena Elektřiny za 1 MWh [Kč/€/$] | C32: 600 | D32: 800 | E32: 1000 | F32: 1200 | G32: 1400 | H32: 1600 | I32: 1800 | J32: 2000 | K32: 2200 | L32: 2400 | M32: 2600 | N32: 2800 | O32: 3000 | P32: 3200 | Q32: 3400 | R32: 3600 | S32: 3800 | T32: 4000 | U32: 4200 | V32: 4400 | W32: Kč
B33: Cena Elektřiny [Kč/MWh] | C33: =IF($W$32='Náklady - výnosy'!$L$13,'Citlivostní a. - elektrina'!C32*'Náklady - výnosy'!$M$13,IF($W$32='Náklady - výnosy'!$L$14,'Citlivostní a. - elektrina'!C32*'Náklady - výnosy'!$M$14,'Citlivostní a. - elektrina'!C32)) -> 600 | D33: =IF($W$32='Náklady - výnosy'!$L$13,'Citlivostní a. - elektrina'!D32*'Náklady - výnosy'!$M$13,IF($W$32='Náklady - výnosy'!$L$14,'Citlivostní a. - elektrina'!D32*'Náklady - výnosy'!$M$14,'Citlivostní a. - elektrina'!D32)) -> 800 | E33: =IF($W$32='Náklady - výnosy'!$L$13,'Citlivostní a. - elektrina'!E32*'Náklady - výnosy'!$M$13,IF($W$32='Náklady - výnosy'!$L$14,'Citlivostní a. - elektrina'!E32*'Náklady - výnosy'!$M$14,'Citlivostní a. - elektrina'!E32)) -> 1000 | F33: =IF($W$32='Náklady - výnosy'!$L$13,'Citlivostní a. - elektrina'!F32*'Náklady - výnosy'!$M$13,IF($W$32='Náklady - výnosy'!$L$14,'Citlivostní a. - elektrina'!F32*'Náklady - výnosy'!$M$14,'Citlivostní a. - elektrina'!F32)) -> 1200 | G33: =IF($W$32='Náklady - výnosy'!$L$13,'Citlivostní a. - elektrina'!G32*'Náklady - výnosy'!$M$13,IF($W$32='Náklady - výnosy'!$L$14,'Citlivostní a. - elektrina'!G32*'Náklady - výnosy'!$M$14,'Citlivostní a. - elektrina'!G32)) -> 1400 | H33: =IF($W$32='Náklady - výnosy'!$L$13,'Citlivostní a. - elektrina'!H32*'Náklady - výnosy'!$M$13,IF($W$32='Náklady - výnosy'!$L$14,'Citlivostní a. - elektrina'!H32*'Náklady - výnosy'!$M$14,'Citlivostní a. - elektrina'!H32)) -> 1600 | I33: =IF($W$32='Náklady - výnosy'!$L$13,'Citlivostní a. - elektrina'!I32*'Náklady - výnosy'!$M$13,IF($W$32='Náklady - výnosy'!$L$14,'Citlivostní a. - elektrina'!I32*'Náklady - výnosy'!$M$14,'Citlivostní a. - elektrina'!I32)) -> 1800 | J33: =IF($W$32='Náklady - výnosy'!$L$13,'Citlivostní a. - elektrina'!J32*'Náklady - výnosy'!$M$13,IF($W$32='Náklady - výnosy'!$L$14,'Citlivostní a. - elektrina'!J32*'Náklady - výnosy'!$M$14,'Citlivostní a. - elektrina'!J32)) -> 2000 | K33: =IF($W$32='Náklady - výnosy'!$L$13,'Citlivostní a. - elektrina'!K32*'Náklady - výnosy'!$M$13,IF($W$32='Náklady - výnosy'!$L$14,'Citlivostní a. - elektrina'!K32*'Náklady - výnosy'!$M$14,'Citlivostní a. - elektrina'!K32)) -> 2200 | L33: =IF($W$32='Náklady - výnosy'!$L$13,'Citlivostní a. - elektrina'!L32*'Náklady - výnosy'!$M$13,IF($W$32='Náklady - výnosy'!$L$14,'Citlivostní a. - elektrina'!L32*'Náklady - výnosy'!$M$14,'Citlivostní a. - elektrina'!L32)) -> 2400 | M33: =IF($W$32='Náklady - výnosy'!$L$13,'Citlivostní a. - elektrina'!M32*'Náklady - výnosy'!$M$13,IF($W$32='Náklady - výnosy'!$L$14,'Citlivostní a. - elektrina'!M32*'Náklady - výnosy'!$M$14,'Citlivostní a. - elektrina'!M32)) -> 2600 | N33: =IF($W$32='Náklady - výnosy'!$L$13,'Citlivostní a. - elektrina'!N32*'Náklady - výnosy'!$M$13,IF($W$32='Náklady - výnosy'!$L$14,'Citlivostní a. - elektrina'!N32*'Náklady - výnosy'!$M$14,'Citlivostní a. - elektrina'!N32)) -> 2800 | O33: =IF($W$32='Náklady - výnosy'!$L$13,'Citlivostní a. - elektrina'!O32*'Náklady - výnosy'!$M$13,IF($W$32='Náklady - výnosy'!$L$14,'Citlivostní a. - elektrina'!O32*'Náklady - výnosy'!$M$14,'Citlivostní a. - elektrina'!O32)) -> 3000 | P33: =IF($W$32='Náklady - výnosy'!$L$13,'Citlivostní a. - elektrina'!P32*'Náklady - výnosy'!$M$13,IF($W$32='Náklady - výnosy'!$L$14,'Citlivostní a. - elektrina'!P32*'Náklady - výnosy'!$M$14,'Citlivostní a. - elektrina'!P32)) -> 3200 | Q33: =IF($W$32='Náklady - výnosy'!$L$13,'Citlivostní a. - elektrina'!Q32*'Náklady - výnosy'!$M$13,IF($W$32='Náklady - výnosy'!$L$14,'Citlivostní a. - elektrina'!Q32*'Náklady - výnosy'!$M$14,'Citlivostní a. - elektrina'!Q32)) -> 3400 | R33: =IF($W$32='Náklady - výnosy'!$L$13,'Citlivostní a. - elektrina'!R32*'Náklady - výnosy'!$M$13,IF($W$32='Náklady - výnosy'!$L$14,'Citlivostní a. - elektrina'!R32*'Náklady - výnosy'!$M$14,'Citlivostní a. - elektrina'!R32)) -> 3600 | S33: =IF($W$32='Náklady - výnosy'!$L$13,'Citlivostní a. - elektrina'!S32*'Náklady - výnosy'!$M$13,IF($W$32='Náklady - výnosy'!$L$14,'Citlivostní a. - elektrina'!S32*'Náklady - výnosy'!$M$14,'Citlivostní a. - elektrina'!S32)) -> 3800 | T33: =IF($W$32='Náklady - výnosy'!$L$13,'Citlivostní a. - elektrina'!T32*'Náklady - výnosy'!$M$13,IF($W$32='Náklady - výnosy'!$L$14,'Citlivostní a. - elektrina'!T32*'Náklady - výnosy'!$M$14,'Citlivostní a. - elektrina'!T32)) -> 4000 | U33: =IF($W$32='Náklady - výnosy'!$L$13,'Citlivostní a. - elektrina'!U32*'Náklady - výnosy'!$M$13,IF($W$32='Náklady - výnosy'!$L$14,'Citlivostní a. - elektrina'!U32*'Náklady - výnosy'!$M$14,'Citlivostní a. - elektrina'!U32)) -> 4200 | V33: =IF($W$32='Náklady - výnosy'!$L$13,'Citlivostní a. - elektrina'!V32*'Náklady - výnosy'!$M$13,IF($W$32='Náklady - výnosy'!$L$14,'Citlivostní a. - elektrina'!V32*'Náklady - výnosy'!$M$14,'Citlivostní a. - elektrina'!V32)) -> 4400 | W33: Kč
B34: NPV [Kč] | C34: -40668851.28 | D34: -38375569.74 | E34: -36082288.2 | F34: -33812667.05 | G34: -31556316.16 | H34: -29307907.55 | I34: -27111366.33 | J34: -24982128.24 | K34: -22954832.79 | L34: -21030816.34 | M34: -19129371.26 | N34: -17241115.59 | O34: -15352859.92 | P34: -13464604.25 | Q34: -11576348.58 | R34: -9688092.91 | S34: -7799837.241 | T34: -5911581.572 | U34: -4023325.903 | V34: -2135070.234 | W34: Kč
D37: V případě nefungujících Maker je potřeba řádek 34 vyplnit ručně postupným dosazováním hodnot do příslušné buňky na listu 'Náklady - Výnosy' a následně zkopírovat výsledne NPV z 'Výpočet NPV'

Sheet Citlivostni a. - cena panelu
C35: Cena Panelu [Kč/€/$] | D35: 6000 | E35: 6500 | F35: 7000 | G35: 7500 | H35: 8000 | I35: 8500 | J35: 9000 | K35: 9500 | L35: 10000 | M35: 10500 | N35: 11000 | O35: 11500 | P35: 12000 | Q35: 12500 | R35: 13000 | S35: 13500 | T35: 14000 | U35: 14500 | V35: 15000 | W35: 15500 | X35: 16000 | Y35: Kč
C36: Cena panelu [Kč] | D36: =IF($Y$35='Náklady - výnosy'!$L$13,'Citlivostni a. - cena panelu'!D35*'Náklady - výnosy'!$M$13,IF($Y$35='Náklady - výnosy'!$L$14,'Citlivostni a. - cena panelu'!D35*'Náklady - výnosy'!$M$14,'Citlivostni a. - cena panelu'!D35)) -> 6000 | E36: =IF($Y$35='Náklady - výnosy'!$L$13,'Citlivostni a. - cena panelu'!E35*'Náklady - výnosy'!$M$13,IF($Y$35='Náklady - výnosy'!$L$14,'Citlivostni a. - cena panelu'!E35*'Náklady - výnosy'!$M$14,'Citlivostni a. - cena panelu'!E35)) -> 6500 | F36: =IF($Y$35='Náklady - výnosy'!$L$13,'Citlivostni a. - cena panelu'!F35*'Náklady - výnosy'!$M$13,IF($Y$35='Náklady - výnosy'!$L$14,'Citlivostni a. - cena panelu'!F35*'Náklady - výnosy'!$M$14,'Citlivostni a. - cena panelu'!F35)) -> 7000 | G36: =IF($Y$35='Náklady - výnosy'!$L$13,'Citlivostni a. - cena panelu'!G35*'Náklady - výnosy'!$M$13,IF($Y$35='Náklady - výnosy'!$L$14,'Citlivostni a. - cena panelu'!G35*'Náklady - výnosy'!$M$14,'Citlivostni a. - cena panelu'!G35)) -> 7500 | H36: =IF($Y$35='Náklady - výnosy'!$L$13,'Citlivostni a. - cena panelu'!H35*'Náklady - výnosy'!$M$13,IF($Y$35='Náklady - výnosy'!$L$14,'Citlivostni a. - cena panelu'!H35*'Náklady - výnosy'!$M$14,'Citlivostni a. - cena panelu'!H35)) -> 8000 | I36: =IF($Y$35='Náklady - výnosy'!$L$13,'Citlivostni a. - cena panelu'!I35*'Náklady - výnosy'!$M$13,IF($Y$35='Náklady - výnosy'!$L$14,'Citlivostni a. - cena panelu'!I35*'Náklady - výnosy'!$M$14,'Citlivostni a. - cena panelu'!I35)) -> 8500 | J36: =IF($Y$35='Náklady - výnosy'!$L$13,'Citlivostni a. - cena panelu'!J35*'Náklady - výnosy'!$M$13,IF($Y$35='Náklady - výnosy'!$L$14,'Citlivostni a. - cena panelu'!J35*'Náklady - výnosy'!$M$14,'Citlivostni a. - cena panelu'!J35)) -> 9000 | K36: =IF($Y$35='Náklady - výnosy'!$L$13,'Citlivostni a. - cena panelu'!K35*'Náklady - výnosy'!$M$13,IF($Y$35='Náklady - výnosy'!$L$14,'Citlivostni a. - cena panelu'!K35*'Náklady - výnosy'!$M$14,'Citlivostni a. - cena panelu'!K35)) -> 9500 | L36: =IF($Y$35='Náklady - výnosy'!$L$13,'Citlivostni a. - cena panelu'!L35*'Náklady - výnosy'!$M$13,IF($Y$35='Náklady - výnosy'!$L$14,'Citlivostni a. - cena panelu'!L35*'Náklady - výnosy'!$M$14,'Citlivostni a. - cena panelu'!L35)) -> 10000 | M36: =IF($Y$35='Náklady - výnosy'!$L$13,'Citlivostni a. - cena panelu'!M35*'Náklady - výnosy'!$M$13,IF($Y$35='Náklady - výnosy'!$L$14,'Citlivostni a. - cena panelu'!M35*'Náklady - výnosy'!$M$14,'Citlivostni a. - cena panelu'!M35)) -> 10500 | N36: =IF($Y$35='Náklady - výnosy'!$L$13,'Citlivostni a. - cena panelu'!N35*'Náklady - výnosy'!$M$13,IF($Y$35='Náklady - výnosy'!$L$14,'Citlivostni a. - cena panelu'!N35*'Náklady - výnosy'!$M$14,'Citlivostni a. - cena panelu'!N35)) -> 11000 | O36: =IF($Y$35='Náklady - výnosy'!$L$13,'Citlivostni a. - cena panelu'!O35*'Náklady - výnosy'!$M$13,IF($Y$35='Náklady - výnosy'!$L$14,'Citlivostni a. - cena panelu'!O35*'Náklady - výnosy'!$M$14,'Citlivostni a. - cena panelu'!O35)) -> 11500 | P36: =IF($Y$35='Náklady - výnosy'!$L$13,'Citlivostni a. - cena panelu'!P35*'Náklady - výnosy'!$M$13,IF($Y$35='Náklady - výnosy'!$L$14,'Citlivostni a. - cena panelu'!P35*'Náklady - výnosy'!$M$14,'Citlivostni a. - cena panelu'!P35)) -> 12000 | Q36: =IF($Y$35='Náklady - výnosy'!$L$13,'Citlivostni a. - cena panelu'!Q35*'Náklady - výnosy'!$M$13,IF($Y$35='Náklady - výnosy'!$L$14,'Citlivostni a. - cena panelu'!Q35*'Náklady - výnosy'!$M$14,'Citlivostni a. - cena panelu'!Q35)) -> 12500 | R36: =IF($Y$35='Náklady - výnosy'!$L$13,'Citlivostni a. - cena panelu'!R35*'Náklady - výnosy'!$M$13,IF($Y$35='Náklady - výnosy'!$L$14,'Citlivostni a. - cena panelu'!R35*'Náklady - výnosy'!$M$14,'Citlivostni a. - cena panelu'!R35)) -> 13000 | S36: =IF($Y$35='Náklady - výnosy'!$L$13,'Citlivostni a. - cena panelu'!S35*'Náklady - výnosy'!$M$13,IF($Y$35='Náklady - výnosy'!$L$14,'Citlivostni a. - cena panelu'!S35*'Náklady - výnosy'!$M$14,'Citlivostni a. - cena panelu'!S35)) -> 13500 | T36: =IF($Y$35='Náklady - výnosy'!$L$13,'Citlivostni a. - cena panelu'!T35*'Náklady - výnosy'!$M$13,IF($Y$35='Náklady - výnosy'!$L$14,'Citlivostni a. - cena panelu'!T35*'Náklady - výnosy'!$M$14,'Citlivostni a. - cena panelu'!T35)) -> 14000 | U36: =IF($Y$35='Náklady - výnosy'!$L$13,'Citlivostni a. - cena panelu'!U35*'Náklady - výnosy'!$M$13,IF($Y$35='Náklady - výnosy'!$L$14,'Citlivostni a. - cena panelu'!U35*'Náklady - výnosy'!$M$14,'Citlivostni a. - cena panelu'!U35)) -> 14500 | V36: =IF($Y$35='Náklady - výnosy'!$L$13,'Citlivostni a. - cena panelu'!V35*'Náklady - výnosy'!$M$13,IF($Y$35='Náklady - výnosy'!$L$14,'Citlivostni a. - cena panelu'!V35*'Náklady - výnosy'!$M$14,'Citlivostni a. - cena panelu'!V35)) -> 15000 | W36: =IF($Y$35='Náklady - výnosy'!$L$13,'Citlivostni a. - cena panelu'!W35*'Náklady - výnosy'!$M$13,IF($Y$35='Náklady - výnosy'!$L$14,'Citlivostni a. - cena panelu'!W35*'Náklady - výnosy'!$M$14,'Citlivostni a. - cena panelu'!W35)) -> 15500 | X36: =IF($Y$35='Náklady - výnosy'!$L$13,'Citlivostni a. - cena panelu'!X35*'Náklady - výnosy'!$M$13,IF($Y$35='Náklady - výnosy'!$L$14,'Citlivostni a. - cena panelu'!X35*'Náklady - výnosy'!$M$14,'Citlivostni a. - cena panelu'!X35)) -> 16000 | Y36: Kč
C37: NPV | D37: -21147363.03 | E37: -22342913.14 | F37: -23538463.25 | G37: -24734013.36 | H37: -25929563.46 | I37: -27125113.57 | J37: -28320663.68 | K37: -29516213.79 | L37: -30712940.62 | M37: -31912940.62 | N37: -33112940.62 | O37: -34312940.62 | P37: -35512940.62 | Q37: -36712940.62 | R37: -37912940.62 | S37: -39112940.62 | T37: -40312940.62 | U37: -41512940.62 | V37: -42712940.62 | W37: -43912940.62 | X37: -45112940.62 | Y37: Kč
G40: V případě nefungujících Maker je potřeba řádek 37 vyplnit ručně postupným dosazováním hodnot do příslušné buňky na listu 'Náklady-výnosy' a následně zkopírovat výsledne NPV z 'Výpočet NPV'

Sheet Ověření dat (hidden)
B2: Ano | D2: Osobní
B3: Ne | D3: Údržba + opravy
D4: Náhradní díly
D5: Jiné
